Cogmind - Beta 11.1 @@@ ROGUE MODE // 2022.09.17 @ 22:51:45 Player: aperiodic Result: Destroyed by G-73 Enforcer with Heavy Laser Performance ------------- Evolutions (8) 4000 Regions Visited (32) 6400 Robots Destroyed (540) 2700 Value Destroyed (21147) 21147 Prototype IDs (111) 2220 Alien Tech Used (2) 400 Bonus (13114) 13114 TOTAL SCORE: 49981 Bonus ------- Triggered High Security 1000 High Alert Combat Kills 6894 Follower Combat Kills 2970 Network Hubs Disabled 200 Aligned with FarCom 300 Met Data Miner 300 Met Zhirov 300 Met Warlord at Base 500 MAIN.C Attacked Warlord 500 Warlord Defense Kills 1072 Built Enhanced Grunts 300 A7 Reached Mainframe 300 Met R17 at Cetus 500 Friendly Fire -2022 Cogmind --------- Core Integrity 0/1450 Matter 289/300 Energy 100/100 System Corruption 1% Temperature Cool (9) Movement Core (50) Location -2/Testing Parts ------- > --- POWER (2) -------- (None) > --- PROPULSION (4) --- (None) > --- UTILITY (14) ----- Experimental Signal Interpreter > --- WEAPON (3) ------- (None) > --- INVENTORY (5) ---- Graphene Brace Helical Railgun Heavy Hardcell Cannon Peak State ------------ > --- POWER ------------ Vortex Chain Reactor > --- PROPULSION ------- Armored Medium Treads Armored Medium Treads Centrium Heavy Treads > --- UTILITY ---------- Experimental Power Amplifier Coolant Network High-capacity Storage Unit Active Sensor Suite Experimental Targeting Computer Experimental Core Analyzer Experimental Phase Shifter Centrium Light Armor Plating Centrium Medium Armor Plating Experimental EM Disruption Field System Mapper > --- WEAPON ----------- EMDS Advanced KE Penetrator > --- INVENTORY -------- Experimental Heat Sink Experimental Optical Array Experimental Targeting Computer Advanced Transmission Jammer Centrium Light Armor Plating Graphene Brace Advanced Component Analysis Suite System Purifier Long-range Tractor Beam Transdimensional Reconstructor EMDS Enhanced Nova Cannon Advanced KE Penetrator Advanced KE Penetrator Helical Railgun Helical Railgun Helical Railgun Vortex Catalyst Activator [Rating: 211] Favorites ----------- Power Heavy Ion Engine Engine Heavy Ion Engine Power Core Fission Core Reactor Vortex Chain Reactor Propulsion Centrium Heavy Treads Treads Centrium Heavy Treads Leg Advanced Myomer Leg Wheel Wheel Utility High-capacity Storage Unit Device Active Sensor Suite Storage High-capacity Storage Unit Processor Experimental Core Analyzer Hackware System Mapper Protection Medium Armor Plating Weapon Advanced KE Penetrator Energy Gun Improved Medium Laser Energy Cannon EMDS Ballistic Gun Advanced KE Penetrator Ballistic Cannon Mini Assault Cannon Launcher Rocket Launcher Special Weapon Plasma Cutter Build | -11 -10 -10 -9 -9 -9 -8 -8 -7 -7 -7 -7 -7 -7 -6 -6 -6 -6 -6 -6 -5 -5 -5 -5 -4 -4 -4 -4 -4 -3 -3 -2 -2 ------- Run | Scr Mat Min Mat Min Exi Min Mat Fac Was Fac Low Low Dat Pro Fac Ext Cet Arc Hub Fac Upp Upp Zhi Pro Fac Upp Upp War Pro Res Res Tes Slots Evolved 16 | . . . 2 . . . 2 2 . . . . . . 2 . . . . 2 . . . . 2 . . . . 2 2 . Power 1 | . . . . . . . . . . . . . . . . . . . . . . . . . 1 . . . . . . . Propulsion 2 | . . . . . . . . 2 . . . . . . . . . . . . . . . . . . . . . . . . Utility 12 | . . . 1 . . . 2 . . . . . . . 2 . . . . 2 . . . . 1 . . . . 2 2 . Weapon 1 | . . . 1 . . . . . . . . . . . . . . . . . . . . . . . . . . . . . Parts Attached 464 | 6 13 2 32 7 36 5 32 2 11 11 7 3 3 6 26 14 18 12 28 13 6 2 8 9 6 5 6 12 2 46 23 52 Power 25 | 1 . 1 3 . 3 . 1 . 1 1 . . . . 2 . 2 . 2 1 . . 1 . . 1 1 1 . . . 3 Engine 9 | 1 . 1 3 . 1 . 1 . . 1 . . . . . . . . . . . . . . . 1 . . . . . . Core 3 | . . . . . 1 . . . . . . . . . 2 . . . . . . . . . . . . . . . . . Reactor 13 | . . . . . 1 . . . 1 . . . . . . . 2 . 2 1 . . 1 . . . 1 1 . . . 3 Propulsion 47 | 2 2 . 7 2 6 . 6 2 2 1 . . . . 2 . 2 1 . 2 . . . . 3 . . . . . 3 4 Treads 25 | . 2 . 1 . 2 . . . 2 1 . . . . 2 . 2 1 . 2 . . . . 3 . . . . . 3 4 Leg 5 | . . . . . 1 . 2 2 . . . . . . . . . . . . . . . . . . . . . . . . Wheel 17 | 2 . . 6 2 3 . 4 . . . . . . . . . . . . . . . . . . . . . . . . . Hover . | . . . . . . . . . . . . . . . . . . . . . . . . . . . . . . . . . Flight . | . . . . . . . . . . . . . . . . . . . . . . . . . . . . . . . . . Utility 226 | 1 3 1 6 2 13 . 14 . 5 4 4 1 . 1 18 9 9 9 25 9 6 2 4 6 3 3 3 10 . 27 10 18 Device 136 | . . . 2 1 7 . 4 . 1 3 4 1 . . 13 5 3 7 19 8 5 2 2 3 1 1 2 6 . 20 7 9 Storage 8 | 1 1 1 1 . 2 . 1 . . . . . . . . . . . . . . . 1 . . . . . . . . . Processor 15 | . . . 1 . 1 . 2 . 2 . . . . . 2 . 1 1 . . . . . 1 . . . 1 . . . 3 Hackware 5 | . . . . . . . . . . 1 . . . . 1 . . . . 1 . . . . 1 . . . . 1 . . Protection 62 | . 2 . 2 1 3 . 7 . 2 . . . . 1 2 4 5 1 6 . 1 . 1 2 1 2 1 3 . 6 3 6 Artifact . | . . . . . . . . . . . . . . . . . . . . . . . . . . . . . . . . . Weapon 166 | 2 8 . 16 3 14 5 11 . 3 5 3 2 3 5 4 5 5 2 1 1 . . 3 3 . 1 2 1 2 19 10 27 Energy Gun 17 | 2 . . 3 1 . . 6 . . . . . . . . . 1 . . . . . . . . . . . . . . 4 Energy Cannon 16 | . . . . . . . . . . . . . . . . 1 . . . . . . 1 1 . 1 . . . 6 1 5 Ballistic Gun 94 | . 5 . 9 1 11 3 2 . 3 2 2 1 2 3 1 2 4 2 1 1 . . 2 2 . . 2 . 2 11 9 11 Ballistic Cannon 13 | . . . . . . . . . . 2 . . 1 1 3 2 . . . . . . . . . . . . . . . 4 Launcher 22 | . 1 . 4 1 1 2 3 . . 1 1 1 . 1 . . . . . . . . . . . . . 1 . 2 . 3 Special Weapon 4 | . 2 . . . 2 . . . . . . . . . . . . . . . . . . . . . . . . . . . Impact Weapon . | . . . . . . . . . . . . . . . . . . . . . . . . . . . . . . . . . Slashing Weapon . | . . . . . . . . . . . . . . . . . . . . . . . . . . . . . . . . . Piercing Weapon . | . . . . . . . . . . . . . . . . . . . . . . . . . . . . . . . . . Special Melee Weapon . | . . . . . . . . . . . . . . . . . . . . . . . . . . . . . . . . . Unidentified Prototypes 56 | . . . 2 1 8 . 1 . 1 3 . . . . 1 . 4 . 3 1 . . 5 1 . . . 6 . 4 2 13 Corrupted Parts 7 | . . . . . . . . . . . . . . . . . 4 3 . . . . . . . . . . . . . . System Corruption 36 | . . . . . . . . . . . . . . . . . 24 12 . . . . . . . . . . . . . . Parts Lost 31 | . . 1 1 . . . 1 . . . . 1 . 4 2 1 1 . . . . . . . . . . . . 2 5 12 Power 3 | . . 1 . . . . . . . . . . . . . . . . . . . . . . . . . . . . . 2 Propulsion 3 | . . . 1 . . . . . . . . . . . . . . . . . . . . . . . . . . . 1 1 Utility 15 | . . . . . . . 1 . . . . 1 . . 2 1 . . . . . . . . . . . . . 2 4 4 Weapon 10 | . . . . . . . . . . . . . . 4 . . 1 . . . . . . . . . . . . . . 5 Highest Loss Streak 5 | . . 1 1 . . . 1 . . . . 1 . 1 1 1 1 . . . . . . . . . . . . 2 2 5 To Critical Strikes . | . . . . . . . . . . . . . . . . . . . . . . . . . . . . . . . . . Average Slot Usage (%) 82 | . 99 98 98 100 95 100 98 97 95 84 84 83 62 72 82 85 79 73 66 74 70 70 68 68 68 63 71 71 68 65 78 68 Engine 3 | . 14 12 10 11 8 . 4 7 5 . 7 7 7 7 2 . . . . . . . . . . . 3 . . . . . Core 1 | . . . . . 1 11 4 . . . . . . . 3 6 1 . . . . . . . . . . . . . . . Reactor 2 | . . . . . . . . . 1 6 . . . . . . 4 6 6 5 5 5 5 5 5 5 6 9 5 4 4 4 Treads 10 | . 18 28 1 . 16 . . . 4 15 15 15 15 15 13 13 13 13 13 10 11 11 11 11 10 10 10 10 10 9 11 9 Leg 1 | . . . . . . . 8 27 21 . . . . . . . . . . . . . . . . . . . . . . . Wheel 3 | . 9 . 20 22 5 22 8 . . . . . . . . . . . . . . . . . . . . . . . . . Device 9 | . . . 9 11 9 . 8 7 4 3 7 8 15 13 12 13 5 6 3 21 11 11 10 9 10 5 8 10 10 10 23 17 Storage 7 | . 14 14 11 11 11 11 9 7 7 7 7 7 7 7 6 6 6 6 6 5 5 5 5 5 5 5 5 5 5 4 4 3 Processor 8 | . . . 1 . . . 8 7 21 15 15 15 15 15 15 18 17 17 9 5 5 5 5 7 10 10 10 10 10 9 8 10 Protection 10 | . 13 14 11 10 11 22 18 15 3 8 7 5 . 1 9 7 9 2 5 5 11 11 11 9 7 9 10 9 10 9 7 6 Energy Gun 3 | . 7 . 18 22 2 . 20 15 . . . . . . . . . . . . . . . . . . . . . . . . Ballistic Gun 14 | . 20 28 14 11 23 31 2 . 23 22 14 14 1 4 7 13 18 20 20 15 17 17 16 14 15 5 12 14 15 10 12 6 Ballistic Cannon 1 | . . . . . . . . . . . 7 7 . 5 8 5 1 . . . . . . . . . . . . . . 1 Naked Turns 1 | . . . . . . . . . . . . . . . . . . . . . . . . . . . . . . . . 1 Heaviest Build 152 | 14 34 58 66 66 90 90 92 76 87 87 74 72 65 66 81 86 123 123 125 87 105 105 105 111 103 113 119 128 120 152 119 136 Greatest Support 160 | 20 40 40 40 20 40 20 60 80 140 140 140 140 140 140 140 140 160 160 160 160 160 160 160 160 160 155 155 155 155 155 160 160 Greatest Overweight (x) 8 | 1 1 1 6 3 8 4 8 . 1 . . . . . . . . . . 1 . . . . . . . . . . 1 1 Average Overweight (x) . | . . . 2 3 1 4 3 . . . . . . . . . . . . . . . . . . . . . . . . . Largest Inventory Capacity 20 | 8 15 20 20 20 20 20 20 20 20 20 20 20 20 20 20 20 20 20 20 20 20 20 20 20 20 20 20 20 20 20 20 20 Average Capacity 19 | 7 11 18 20 20 13 20 20 20 20 20 20 20 20 20 20 20 20 20 20 20 20 20 20 20 20 20 20 20 20 20 20 19 Most Carried 20 | 4 15 16 20 20 20 20 20 20 20 20 20 20 19 20 20 20 20 20 20 20 20 20 20 20 20 20 19 20 20 20 20 20 Average Carried 17 | 2 9 15 18 19 11 20 19 18 18 19 19 19 19 18 18 19 19 19 19 18 19 20 19 19 18 19 18 19 19 17 13 16 Final Capacity 20 | 8 15 20 20 20 20 20 20 20 20 20 20 20 20 20 20 20 20 20 20 20 20 20 20 20 20 20 20 20 20 20 20 5 Final Carried 20 | 4 15 16 20 20 20 20 20 18 20 20 20 19 19 19 20 20 20 20 20 20 20 20 20 20 19 19 18 20 20 16 20 4 Class Distribution -------------------- 25% | Scavenger-Skirmisher 19% | Scavenger-Gunner 18% | Tank 18% | Mutant 8% | Scavenger-Tank 5% | Gunner 4% | Scavenger-Mutant Dominant Class ---------------- Mutant | -10/Materials Mutant | -10/Mines Tank | -9/Materials Tank | -9/Mines Tank | -9/Exiles Tank | -8/Mines Tank | -8/Materials Mutant | -7/Factory Scavenger-Gunner | -7/Waste Scavenger-Gunner | -7/Factory Gunner | -7/Lower Caves Gunner | -7/Lower Caves Mutant | -7/Data Miner Mutant | -6/Proximity Caves Scavenger-Gunner | -6/Factory Scavenger-Gunner | -6/Extension Scavenger-Gunner | -6/Cetus Scavenger-Gunner | -6/Archives Scavenger-Gunner | -6/Hub_04(d) Scavenger-Skirmisher | -5/Factory Scavenger-Skirmisher | -5/Upper Caves Scavenger-Skirmisher | -5/Upper Caves Scavenger-Skirmisher | -5/Zhirov Scavenger-Skirmisher | -4/Proximity Caves Scavenger-Skirmisher | -4/Factory Scavenger-Skirmisher | -4/Upper Caves Scavenger-Skirmisher | -4/Upper Caves Scavenger-Skirmisher | -4/Warlord Scavenger-Tank | -3/Proximity Caves Scavenger-Skirmisher | -3/Research Scavenger-Tank | -2/Research Scavenger-Skirmisher | -2/Testing Resources | -11 -10 -10 -9 -9 -9 -8 -8 -7 -7 -7 -7 -7 -7 -6 -6 -6 -6 -6 -6 -5 -5 -5 -5 -4 -4 -4 -4 -4 -3 -3 -2 -2 ----------- Run | Scr Mat Min Mat Min Exi Min Mat Fac Was Fac Low Low Dat Pro Fac Ext Cet Arc Hub Fac Upp Upp Zhi Pro Fac Upp Upp War Pro Res Res Tes Matter Collected 14680 | 214 268 268 634 159 891 75 653 . 479 701 276 400 . 284 760 939 521 409 1220 530 142 104 . 276 107 83 144 216 46 1853 456 1572 Remotely 3850 | . . . . . . . . . . . 92 . . . 250 42 . . 888 430 116 . . 103 . 45 . . . 827 406 651 Salvage Created 26347 | . 659 111 1701 281 399 83 1602 . 1796 1058 478 593 . 452 1255 1640 463 327 2567 1349 . 138 . 282 181 . 323 228 . 4443 761 3177 Parts 1298 | . 50 13 121 24 29 14 103 . 40 72 20 28 . 15 52 75 23 39 133 72 . 11 . 19 10 . 16 5 . 160 34 120 Haulers Intercepted 26 | . 2 . 6 . . . 3 . . 2 . . . . 2 2 . . 3 . . . . . 1 . . . . 4 . 1 Recyclers Shooed 7 | . . . 2 . . . . . . . . . . . 3 . . . . . . . . . . . . . . 2 . . Parts Field Recycled . | . . . . . . . . . . . . . . . . . . . . . . . . . . . . . . . . . Retrieved Matter . | . . . . . . . . . . . . . . . . . . . . . . . . . . . . . . . . . Parts Self-Destructed 87 | . . . . . . . . . . . 18 27 . 14 . . . . . . . 11 . 12 . . 5 . . . . . Prevented 9 | . . . . . . . . . . . . . . . . . . . . . . . . 7 . . 2 . . . . . Kills | -11 -10 -10 -9 -9 -9 -8 -8 -7 -7 -7 -7 -7 -7 -6 -6 -6 -6 -6 -6 -5 -5 -5 -5 -4 -4 -4 -4 -4 -3 -3 -2 -2 ------- Run | Scr Mat Min Mat Min Exi Min Mat Fac Was Fac Low Low Dat Pro Fac Ext Cet Arc Hub Fac Upp Upp Zhi Pro Fac Upp Upp War Pro Res Res Tes Combat Hostiles Destroyed 364 | . 13 7 30 7 4 8 31 . 6 14 7 16 . 8 11 22 7 . 26 18 . 2 . 7 1 . 5 8 . 56 10 40 Guns 239 | . 10 7 26 4 1 . 23 . 6 11 4 9 . 1 8 11 7 . 26 18 . 2 . 6 1 . 5 . . 28 8 17 Cannons 44 | . . . . . . . . . . . 1 5 . 5 3 11 . . . . . . . . . . . . . 5 . 14 AOE 59 | . 3 . 4 3 3 8 8 . . 3 2 2 . 2 . . . . . . . . . . . . . 8 . 7 . 6 Classes Destroyed 28 | . 6 . 3 . 3 . 3 . 2 2 . . . 1 1 . . . 3 1 . . . . . . . . . . 1 2 Worker 46 | . 1 . 5 1 . 3 8 . . 1 . . . . 2 1 . . 4 1 . . . . . . . . . 13 . 6 Builder 35 | . 1 . 2 2 . . 6 . . 2 . . . . . 2 . . 5 2 . . . . . . . . . 9 . 4 Tunneler 4 | . . . 3 . . . . . . . . . . . 1 . . . . . . . . . . . . . . . . . Hauler 26 | . 2 . 6 . . . 3 . . 2 . . . . 2 2 . . 3 . . . . . 1 . . . . 4 . 1 Recycler 16 | . . . 1 2 . . 2 . . 1 . . . . 5 1 . . 2 1 . . . . . . . . . . . 1 Mechanic 2 | . . . . . . . . . . 1 . . . . . . . . . . . . . . . . . . . . . 1 Operator 15 | . . . . . . . 1 . . 1 . . . . . . . 9 1 1 . . . . . . . . . 2 . . Turret 1 | . . . . . 1 . . . . . . . . . . . . . . . . . . . . . . . . . . . Watcher 22 | . 2 . 3 . . . 5 . . 2 . . . . 1 2 1 . . 1 . . . . . . . . . 3 . 2 Swarmer 76 | . 3 7 9 7 . 8 7 . . . . 7 . 5 3 2 . . . . . . . 5 . . . 1 . 12 . . Saboteur 1 | . . . . . . . . . . . . . . . . . . . . 1 . . . . . . . . . . . . Grunt 146 | . 10 . 14 . . . 15 . . 10 6 8 . 2 3 9 1 . 5 9 . . . . . . . 4 . 22 5 23 Brawler 4 | . . . . . . . . . . . . . . 1 . . . . . 3 . . . . . . . . . . . . Duelist 7 | . . . . . . . 2 . . . 1 . . . . 1 1 . . . . . . . . . . . . . . 2 Protector 7 | . . . . . . . . . . . . . . . . . . . 4 1 . . . . . . . . . 1 . 1 Researcher 1 | . . . . . . . . . . . . . . . . . . . . . . . . . . . . . . . . 1 Sentry 31 | . . . 7 . . . 6 . . 1 . 1 . . 1 9 . . 2 . . . . . 1 . . . . 3 . . Demolisher 1 | . . . . . . . . . . . . . . . . . . . 1 . . . . . . . . . . . . . Specialist 1 | . . . . . . . . . . . . . . . . . . . 1 . . . . . . . . . . . . . Hunter 26 | . . . . . . . 1 . . 1 . . . . 1 1 . . 2 . . 2 . . . . . 2 . 9 . 7 Programmer 32 | . . . . . . . . . . 2 . . . . 2 . 1 . 1 4 . . . 1 . . 1 1 . 10 3 6 Heavy 2 | . . . . . . . . . . . . . . . 2 . . . . . . . . . . . . . . . . . Behemoth 2 | . . . . . . . . . . . . . . . . . . . 1 . . . . 1 . . . . . . . . Compactor 6 | . . . . . . . . . 6 . . . . . . . . . . . . . . . . . . . . . . . Cetus Guard 4 | . . . . . . . . . . . . . . . . . 4 . . . . . . . . . . . . . . . Enhanced Grunt 1 | . . . . . . . . . . . . . . . . . . . 1 . . . . . . . . . . . . . Lightning 9 | . . . . . . . . . . . . . . . . . . . 9 . . . . . . . . . . . . . Executioner 2 | . . . . . . . . . . . . . . . . . . . . . . . . . . . . . . . 2 . Alpha 7 1 | . . . . . . . . . . . . . . . . . . . . . . . . . . . . . . . . 1 Zionite 8 | . . . . . 8 . . . . . . . . . . . . . . . . . . . . . . . . . . . Assembled 3 | . . . . . 3 . . . . . . . . . . . . . . . . . . . . . . . . . . . Surgeon 2 | . . . . . . . . . . . 2 . . . . . . . . . . . . . . . . . . . . . Thug 2 | . . . . . . . . . . . . . . . . 1 . . . . . . . . . . 1 . . . . . Butcher 3 | . . . . . . . . . . . . . . . . . . . . . . . . . . . 3 . . . . . Martyr 2 | . . . . . . . . . 2 . . . . . . . . . . . . . . . . . . . . . . . Best Kill Streak 24 | . 6 3 11 5 3 6 16 . 3 12 4 5 . 3 6 4 3 5 14 13 . 2 . 5 1 . 4 8 . 24 4 14 Combat Bots Only 16 | . 3 3 4 4 3 4 11 . 3 6 4 5 . 3 3 4 3 . 8 9 . 2 . 5 1 . 4 8 . 16 4 10 Max Kills in Single Turn 7 | . 2 1 4 4 2 4 2 . 1 4 2 3 . 2 2 2 2 1 2 2 . 1 . 3 1 . 2 5 . 7 2 3 Gunslinging 2 | . . . 1 . . . . . . . . . . . . . 1 . . . . . . 2 . . 1 . . 1 . 1 Exploded 5 | . 2 . 3 3 2 4 2 . . 2 2 1 . 2 . . . . . . . . . . . . . 5 . 4 . 2 Melee . | . . . . . . . . . . . . . . . . . . . . . . . . . . . . . . . . . Uniques/NPCs Destroyed 4 | . . . . . 4 . . . . . . . . . . . . . . . . . . . . . . . . . . . 8R-AWN (-9/Exiles) EX-BIN (-9/Exiles) EX-HEX (-9/Exiles) EX-DEC (-9/Exiles) Combat | -11 -10 -10 -9 -9 -9 -8 -8 -7 -7 -7 -7 -7 -7 -6 -6 -6 -6 -6 -6 -5 -5 -5 -5 -4 -4 -4 -4 -4 -3 -3 -2 -2 -------- Run | Scr Mat Min Mat Min Exi Min Mat Fac Was Fac Low Low Dat Pro Fac Ext Cet Arc Hub Fac Upp Upp Zhi Pro Fac Upp Upp War Pro Res Res Tes Damage Taken 19642 | . 471 264 501 97 57 41 973 13 . 901 166 446 . 511 1036 849 583 67 1524 788 . 267 . 248 171 . 163 91 . 2753 863 5798 Core 2128 | . 93 34 65 . 15 . 81 . . 55 . 81 . 60 49 25 6 . 54 26 . 23 . . . . . 13 . 68 164 1216 Absorbed by Shields 483 | . . . . . . . . . . . . . . . . 49 135 . . . . . . . . . . 85 . 82 132 . Reduced by Siege Mode 1347 | . . . . . . . . . . 56 11 46 . 25 50 87 68 . 64 142 . 4 . 46 20 . 22 . . 237 22 447 Redirected to Shielding 543 | . . . . . . . . . . . . . . . . . . . . 82 . 18 . 25 . . 16 1 . 125 192 84 Regen/Repaired (Parts) 3108 | . 116 . 104 . . . 121 . . 238 . . . . . . . . . 317 . . . . 100 . . . . . . 2112 Core Remaining (%) 84 | 100 . 49 . . . 80 85 . . . . . . 72 . . . . 84 . . . . 95 . . . . 98 94 . . Volleys Fired 1083 | . 61 19 88 11 70 6 71 1 20 42 18 26 . 22 47 101 41 20 79 39 . 7 . 12 4 . 7 11 6 119 21 114 Largest 3 | . 2 2 3 3 3 3 3 1 3 3 3 3 . 3 3 3 3 3 3 3 . 3 . 3 3 . 3 3 3 3 3 3 Hottest 240 | . 100 40 168 135 83 83 240 33 83 88 103 101 . 101 126 115 240 105 105 105 . 105 . 105 105 . 105 105 105 108 105 120 Shots Fired 2479 | . 118 38 244 31 136 10 176 1 60 110 29 72 . 36 112 201 72 58 237 118 . 21 . 20 12 . 21 27 19 253 53 194 Gun 2063 | . 114 38 240 30 99 6 161 . 60 106 20 46 . 14 55 104 69 58 237 118 . 21 . 12 12 . 21 24 19 200 48 131 Cannon 329 | . . . . . . . . . . . 6 23 . 19 57 97 3 . . . . . . 8 . . . . . 51 5 60 Launcher 50 | . 2 . 4 1 2 4 15 1 . 4 3 3 . 3 . . . . . . . . . . . . . 3 . 2 . 3 Special 37 | . 2 . . . 35 . . . . . . . . . . . . . . . . . . . . . . . . . . . Kinetic 1948 | . 90 38 110 10 99 6 42 . 60 106 26 69 . 33 112 154 70 58 237 118 . 21 . 12 12 . 21 24 19 200 48 153 Thermal 360 | . 2 . 130 20 35 . 119 . . . . . . . . 47 2 . . . . . . . . . . . . . . 5 Explosive 42 | . 2 . 4 1 2 4 15 1 . 4 3 3 . 3 . . . . . . . . . . . . . . . . . . Electromagnetic 121 | . 24 . . . . . . . . . . . . . . . . . . . . . . 8 . . . . . 51 5 33 Entropic 8 | . . . . . . . . . . . . . . . . . . . . . . . . . . . . 3 . 2 . 3 Robot Hit Streak 38 | . 9 4 11 7 38 3 17 . 14 14 18 24 . 6 20 35 18 9 16 22 . 10 . 13 16 . 10 2 . 31 15 33 Robot Miss Streak 6 | . 4 5 5 1 3 3 4 . 2 4 1 2 . 3 3 6 6 3 3 2 . 2 . 1 1 . 1 1 . 2 6 1 Penetration Max 2 | . . . . . . . . . 1 1 . . . . . 2 . . 1 1 . 1 . 1 . . 1 . . 1 1 1 Secondary Targets 41 | . . 2 1 . . . 3 . 1 2 . . . . . . 1 . 6 6 . 1 . 3 . . 2 . . 6 . 7 Max Gunslinging Chain 2 | . . 1 1 . . . 1 . 1 1 . . . . . . 1 . 1 1 . 1 . 2 . . 1 . . 1 . 1 Shots Hit Robots 1684 | . 75 18 132 16 97 3 147 . 40 75 22 46 . 23 71 123 58 35 166 88 . 15 . 15 9 . 17 2 . 200 35 156 Core Hits 1010 | . 32 12 68 11 34 13 119 . 23 38 20 29 . 17 37 90 37 17 99 46 . 6 . 7 5 . 11 9 1 111 22 96 Critical Kills 77 | . 1 . . . 2 . . . 7 9 . . . 1 1 . 2 3 17 8 . . . 2 . . 2 . . 14 3 5 Critical Parts Destroyed 98 | . . . . . 6 . . . 3 17 2 . . 1 . 2 1 2 21 6 . 1 . . . . 1 . . 24 2 9 Critical Strikes 234 | . 2 . 9 . 10 . . . 14 26 2 1 . 3 6 6 4 7 39 15 . 1 . 4 . . 3 . . 52 7 23 Burn 8 | . . . 8 . . . . . . . . . . . . . . . . . . . . . . . . . . . . . Destroy 190 | . 1 . 1 . 9 . . . 14 26 2 . . 2 1 3 4 7 39 15 . 1 . 2 . . 3 . . 41 5 14 Blast 16 | . . . . . . . . . . . . 1 . 1 5 3 . . . . . . . . . . . . . . . 6 Corrupt 19 | . 1 . . . . . . . . . . . . . . . . . . . . . . 2 . . . . . 11 2 3 Sever 1 | . . . . . 1 . . . . . . . . . . . . . . . . . . . . . . . . . . . Melee Attacks . | . . . . . . . . . . . . . . . . . . . . . . . . . . . . . . . . . Impact . | . . . . . . . . . . . . . . . . . . . . . . . . . . . . . . . . . Slashing . | . . . . . . . . . . . . . . . . . . . . . . . . . . . . . . . . . Piercing . | . . . . . . . . . . . . . . . . . . . . . . . . . . . . . . . . . Sneak Attacks . | . . . . . . . . . . . . . . . . . . . . . . . . . . . . . . . . . Combat Hostiles . | . . . . . . . . . . . . . . . . . . . . . . . . . . . . . . . . . Follow-up Attacks . | . . . . . . . . . . . . . . . . . . . . . . . . . . . . . . . . . Damage Inflicted 54069 | . 869 171 2441 453 1358 519 3906 57 800 1813 784 926 . 902 2033 3037 1268 946 5418 2897 . 382 . 428 177 . 566 1690 21 10490 1414 8303 Guns 34048 | . 726 152 2121 243 1128 55 2494 . 800 1367 310 536 . 183 970 2112 1243 930 5392 2897 . 382 . 234 177 . 566 . 21 5057 1044 2908 Cannons 9818 | . . . . . . . . . . . 51 205 . 419 1056 863 25 . . . . . . 194 . . . . . 3420 327 3258 Explosions 9681 | . 143 . 298 210 136 464 1412 57 . 446 423 185 . 300 . . . . 3 . . . . . . . . 1690 . 1796 . 2118 Melee . | . . . . . . . . . . . . . . . . . . . . . . . . . . . . . . . . . Ramming 428 | . . 19 22 . . . . . . . . . . . 7 62 . 16 23 . . . . . . . . . . 217 43 19 Kinetic 34972 | . 479 152 787 27 1128 55 510 . 800 1367 361 741 . 602 2026 2975 1268 930 5392 2897 . 382 . 234 177 . 566 . 21 5057 1044 4994 Thermal 4083 | . 42 . 1334 216 94 . 1984 . . . . . . . . . . . . . . . . . . . . . . 87 . 326 Explosive 4032 | . 101 . 298 210 136 464 1412 57 . 446 423 185 . 300 . . . . . . . . . . . . . . . . . . Electromagnetic 5363 | . 247 . . . . . . . . . . . . . . . . . 3 . . . . 194 . . . . . 3420 327 1172 Impact . | . . . . . . . . . . . . . . . . . . . . . . . . . . . . . . . . . Slashing . | . . . . . . . . . . . . . . . . . . . . . . . . . . . . . . . . . Piercing . | . . . . . . . . . . . . . . . . . . . . . . . . . . . . . . . . . Entropic 5191 | . . . . . . . . . . . . . . . . . . . . . . . . . . . . 1690 . 1709 . 1792 Highest Corruption 26 | . . . 3 3 3 3 . . . 2 2 2 2 2 5 4 26 26 4 1 1 . . . . . . 1 1 5 . 2 Average Corruption 3 | . . . 3 3 3 3 . . . 1 2 2 2 2 1 2 19 12 2 1 1 . . . . . . 1 1 3 . 1 Corruption Purged 56 | . . . . . . . . . . 1 . . . . 4 4 . 38 . . 1 . . . . . . . . 7 . 1 Corruption Blocked 43 | . . . . . . . . . . . . . . . . . . . . . . . . . . . . . . . 23 20 Effects 250 | . . . 15 17 50 18 . . . 6 15 8 2 12 6 13 25 20 5 1 1 . . . . . . . 10 12 . 14 Message Errors 52 | . . . 6 4 11 4 . . . 2 5 2 . 2 . 2 2 3 1 . 1 . . . . . . . 3 3 . 1 Matter Fused 64 | . . . 2 6 12 4 . . . 3 4 3 . 2 2 3 8 4 1 . . . . . . . . . 2 3 . 5 Heat Flow Errors 20 | . . . 3 . 2 3 . . . . 1 . . 1 . . 1 2 . . . . . . . . . . 3 3 . 1 Energy Discharges 37 | . . . 1 3 8 . . . . 1 2 1 1 1 2 3 3 7 . . . . . . . . . . . . . 4 Parts Rejected 3 | . . . 1 . . . . . . . 1 . . . . . . . 1 . . . . . . . . . . . . . Data Loss (minor) 27 | . . . 1 1 9 2 . . . . 1 . 1 3 2 3 4 . . . . . . . . . . . . . . . Data Loss (major) 19 | . . . . 3 3 2 . . . . 1 1 . 2 . . 2 . . . . . . . . . . . 1 2 . 2 Misfires 16 | . . . 1 . 3 1 . . . . . 1 . 1 . 2 2 . 1 1 . . . . . . . . 1 1 . 1 Alerts 2 | . . . . . . 1 . . . . . . . . . . . 1 . . . . . . . . . . . . . . Misdirections 1 | . . . . . . . . . . . . . . . . . . 1 . . . . . . . . . . . . . . Weapon Failures 9 | . . . . . 2 1 . . . . . . . . . . 3 2 1 . . . . . . . . . . . . . Overload Shots 2 | . . . . . . . . . . . . . . . . . 2 . . . . . . . . . . . . . . . Overflow Damage 917 | . . . 72 20 21 . 19 22 . 19 . . . 51 39 9 . . . . . . . . . . . 70 . 364 . 211 Projectiles 366 | . . . . . 21 . . . . . . . . . 39 9 . . . . . . . . . . . . . 129 . 168 Explosions 535 | . . . 72 20 . . 19 22 . 19 . . . 51 . . . . . . . . . . . . . 70 . 219 . 43 Melee 16 | . . . . . . . . . . . . . . . . . . . . . . . . . . . . . . 16 . . Knockbacks 27 | . . . . . . . . . . . . . . 2 5 5 1 . . . . . . . . . . . . 2 . 12 Impact 3 | . . . . . . . . . . . . . . . . 1 . . . . . . . . . . . . . 2 . . Kinetic 23 | . . . . . . . . . . . . . . 2 5 4 1 . . . . . . . . . . . . . . 11 Secondary 1 | . . . . . . . . . . . . . . . . . . . . . . . . . . . . . . . . 1 Self-Inflicted Damage 490 | . 39 . 11 . . 11 74 . . 104 12 40 . 86 . . . . 8 . . . . . . . . . . . . 105 Shots 14 | . 1 . . . . 1 2 . . 4 1 1 . 2 . . . . 1 . . . . . . . . . . . . 1 Rammed 35 | . . 5 1 . . . . . . . . . . . 1 6 . 3 4 . . . . . . . . . . 9 4 2 Targets Rammed 38 | . . 5 1 . . . . . . . . . . . 1 6 . 3 4 . . . . . . . . . . 11 4 3 Kicked . | . . . . . . . . . . . . . . . . . . . . . . . . . . . . . . . . . Crushed 3 | . . . . . . . . . . . . . . . . . . . . . . . . . . . . . . 2 . 1 Highest Temperature 552 | . 300 16 219 36 204 252 468 . 102 552 236 6 . 110 195 314 270 250 413 25 . 210 . . . . 18 . 208 215 . 449 Average Temperature 80 | . 46 7 44 15 42 70 133 . 41 133 116 1 . 32 76 108 95 86 121 12 . 91 . . . . 18 . 101 17 . 54 Received Heat Transfer 3768 | . 207 . 156 . . . 459 9 . 402 81 126 . 171 135 195 . . 213 220 . . . . 30 . 18 10 . 472 108 756 Effects 33 | . . . . . . . 9 . . 10 3 . . . . 1 . 3 6 . . . . . . . . . . . . 1 Shutdowns 5 | . . . . . . . 1 . . 2 . . . . . . . . 1 . . . . . . . . . . . . 1 Energy Bleed 7 | . . . . . . . 1 . . 1 . . . . . 1 . . 4 . . . . . . . . . . . . . Interference 13 | . . . . . . . 4 . . 3 3 . . . . . . 3 . . . . . . . . . . . . . . Short Circuit 3 | . . . . . . . 1 . . 1 . . . . . . . . 1 . . . . . . . . . . . . . Damage (minor) 3 | . . . . . . . . . . 3 . . . . . . . . . . . . . . . . . . . . . . Damage (major) 2 | . . . . . . . 2 . . . . . . . . . . . . . . . . . . . . . . . . . Siege Activations 95 | . . . . . . . . . . 7 2 3 . 1 5 13 3 1 11 6 . 1 . 7 1 3 2 2 . 14 4 9 Total Turns 2757 | . . . . . . . . . . 117 30 42 . 14 109 362 57 5 561 315 . 22 . 209 11 134 31 21 . 324 162 231 Longest Duration 345 | . . . . . . . . . . 46 20 34 . 14 50 101 27 5 345 121 . 22 . 89 11 92 19 14 . 58 101 64 Robots Corrupted 23 | . . . . . . . . . . . . . . . . . . . . . . . . 1 . . . . . 17 2 3 Combat Hostiles 22 | . . . . . . . . . . . . . . . . . . . . . . . . 1 . . . . . 16 2 3 Parts Fried 52 | . 1 . . . . . . . . . . . . . . 1 . 1 . . . . . . . . . . . 38 6 5 Impact Corruptions 1 | . . . . . . . . . . . . . . . . . . . . . . . . . . . . . . 1 . . Robots Melted . | . . . . . . . . . . . . . . . . . . . . . . . . . . . . . . . . . Combat Hostiles . | . . . . . . . . . . . . . . . . . . . . . . . . . . . . . . . . . Parts Melted 16 | . . . 3 2 3 . 8 . . . . . . . . . . . . . . . . . . . . . . . . . Heat Transferred 8703 | . . . 3441 481 421 . 4060 . . . . . . . . . . . . . . . . . . . . . . 100 . 200 Parts Sabotaged 1 | . . . . . . . . . . . . . . . . . . . . . . . . . . . . . . . . 1 Parts Stolen . | . . . . . . . . . . . . . . . . . . . . . . . . . . . . . . . . . Parts Stripped . | . . . . . . . . . . . . . . . . . . . . . . . . . . . . . . . . . Power Chain Reactions 3 | . 1 . . . . . . . . . . . . . . . . . . . . . . . . . . . . 1 . 1 Missiles Intercepted . | . . . . . . . . . . . . . . . . . . . . . . . . . . . . . . . . . Alert | -11 -10 -10 -9 -9 -9 -8 -8 -7 -7 -7 -7 -7 -7 -6 -6 -6 -6 -6 -6 -5 -5 -5 -5 -4 -4 -4 -4 -4 -3 -3 -2 -2 ------- Run | Scr Mat Min Mat Min Exi Min Mat Fac Was Fac Low Low Dat Pro Fac Ext Cet Arc Hub Fac Upp Upp Zhi Pro Fac Upp Upp War Pro Res Res Tes Peak Influence 1908 | . 288 115 610 384 . 152 757 343 120 340 . . . . 384 412 486 394 1815 1153 . . . . 122 . . . . 1908 1200 1642 Initial 1100 | . . 48 . 170 . . . 306 120 . . . . . 12 168 156 112 18 889 . . . . 18 . . . . . 1100 453 Average 463 | . 159 43 351 238 . 63 531 335 68 110 . . . . 177 244 328 232 1200 911 . . . . 74 . . . . 492 1038 1079 Maximum Alert Level 5 | . 1 . 2 1 . . 3 1 . 1 . . . . 1 2 2 1 5 4 . . . . . . . . . 5 4 5 Low Security (%) 36 | 100 54 100 19 66 . 100 11 . 100 88 . . . . 61 19 8 28 9 . . . . . 100 . . . . 41 . . Level 1 22 | . 45 . 24 33 . . 6 100 . 11 . . . . 38 80 67 71 6 . . . . . . . . . . 22 . . Level 2 13 | . . . 55 . . . 57 . . . . . . . . . 23 . 2 . . . . . . . . . . 7 . 18 Level 3 16 | . . . . . . . 25 . . . . . . . . . . . 6 94 . . . . . . . . . 9 71 33 Level 4 9 | . . . . . . . . . . . . . . . . . . . 64 5 . . . . . . . . . 14 28 36 Level 5 . | . . . . . . . . . . . . . . . . . . . 10 . . . . . . . . . . 2 . . High Security . | . . . . . . . . . . . . . . . . . . . . . . . . . . . . . . 1 . 10 Max Security . | . . . . . . . . . . . . . . . . . . . . . . . . . . . . . . . . . Squads Dispatched 85 | . 2 1 3 . . . 7 1 . 8 . . . . 3 4 . . 10 6 . . . . 1 . . . . 16 1 22 Investigation 25 | . 1 1 1 . . . 2 . . 3 . . . . 2 . . . . 2 . . . . 1 . . . . 8 . 4 Extermination 12 | . . . . . . . . . . 2 . . . . 1 . . . 1 2 . . . . . . . . . 3 . 3 Reinforcement 31 | . 1 . 2 . . . 2 1 . 3 . . . . . 4 . . 7 . . . . . . . . . . 4 1 6 Assault 15 | . . . . . . . 1 . . . . . . . . . . . 2 2 . . . . . . . . . 1 . 9 Garrison 2 | . . . . . . . 2 . . . . . . . . . . . . . . . . . . . . . . . . . Intercept . | . . . . . . . . . . . . . . . . . . . . . . . . . . . . . . . . . Searches Triggered . | . . . . . . . . . . . . . . . . . . . . . . . . . . . . . . . . . Data Miner Redirects 13 | . . . . . . . . . . . . . . . 1 . . . 1 2 . . . . . . . . . 5 . 4 Construction Impeded 6 | . . . . . . . 1 . . 1 . . . . . . . . 1 . . . . . . . . . . 2 . 1 Haulers Reinforced 5 | . . . . . . . . . . 1 . . . . . . . . 2 . . . . . . . . . . 2 . . Active Scanning Responses 12 | . . . . . . . . . . . . . . . . . . . . 2 . . . . . . . . . 7 . 3 Cargo Convoy Interrupts . | . . . . . . . . . . . . . . . . . . . . . . . . . . . . . . . . . Stealth | -11 -10 -10 -9 -9 -9 -8 -8 -7 -7 -7 -7 -7 -7 -6 -6 -6 -6 -6 -6 -5 -5 -5 -5 -4 -4 -4 -4 -4 -3 -3 -2 -2 --------- Run | Scr Mat Min Mat Min Exi Min Mat Fac Was Fac Low Low Dat Pro Fac Ext Cet Arc Hub Fac Upp Upp Zhi Pro Fac Upp Upp War Pro Res Res Tes Distress Signals 34 | . . . 8 . . . . . . 2 . . . . . 4 2 . 2 1 . . . . . . . 1 . 6 6 2 Communications Jammed 8 | . . . . . . . . . . . . . . . 8 . . . . . . . . . . . . . . . . . Distress Signals . | . . . . . . . . . . . . . . . . . . . . . . . . . . . . . . . . . Times Spotted 557 | . 22 9 43 8 10 7 38 4 6 27 7 12 . 9 17 34 15 9 55 24 . 2 . 5 3 . 4 12 . 70 12 93 Peak Tracking Total 23 | . 7 3 5 4 9 4 6 1 3 5 4 4 . 3 3 4 5 1 10 6 . 2 . 5 4 . 4 11 . 6 4 23 Tactical Retreats 17 | . 2 1 . 1 2 . 1 . . . . . . . . 3 . . 1 . . . . 1 . . . . . 2 1 2 Traps | -11 -10 -10 -9 -9 -9 -8 -8 -7 -7 -7 -7 -7 -7 -6 -6 -6 -6 -6 -6 -5 -5 -5 -5 -4 -4 -4 -4 -4 -3 -3 -2 -2 ------- Run | Scr Mat Min Mat Min Exi Min Mat Fac Was Fac Low Low Dat Pro Fac Ext Cet Arc Hub Fac Upp Upp Zhi Pro Fac Upp Upp War Pro Res Res Tes Traps Triggered 8 | . 1 . . . . . . 1 . 2 . . . . . . . . . . . . . . . . . . . 2 . 2 Indirectly . | . . . . . . . . . . . . . . . . . . . . . . . . . . . . . . . . . Trap Hack Attempts . | . . . . . . . . . . . . . . . . . . . . . . . . . . . . . . . . . Triggered . | . . . . . . . . . . . . . . . . . . . . . . . . . . . . . . . . . Disarmed . | . . . . . . . . . . . . . . . . . . . . . . . . . . . . . . . . . Reprogrammed . | . . . . . . . . . . . . . . . . . . . . . . . . . . . . . . . . . Reused . | . . . . . . . . . . . . . . . . . . . . . . . . . . . . . . . . . Traps Extracted . | . . . . . . . . . . . . . . . . . . . . . . . . . . . . . . . . . Installed . | . . . . . . . . . . . . . . . . . . . . . . . . . . . . . . . . . Triggered 18 | . . . . . . . . . . . . . . . . . . . . . . . . . . . 1 17 . . . . Exploded 3 | . . . . . 3 . . . . . . . . . . . . . . . . . . . . . . . . . . . Machines | -11 -10 -10 -9 -9 -9 -8 -8 -7 -7 -7 -7 -7 -7 -6 -6 -6 -6 -6 -6 -5 -5 -5 -5 -4 -4 -4 -4 -4 -3 -3 -2 -2 ---------- Run | Scr Mat Min Mat Min Exi Min Mat Fac Was Fac Low Low Dat Pro Fac Ext Cet Arc Hub Fac Upp Upp Zhi Pro Fac Upp Upp War Pro Res Res Tes Machines Disabled 48 | . . . 2 . 6 1 3 . . . . . . . 2 2 2 2 14 2 . . . . 2 . . . . . . 10 Max in Single Turn 6 | . . . 1 . 1 1 1 . . . . . . . 1 1 1 1 6 1 . . . . 1 . . . . . . 2 Garrison Access 5 | . . . . . . . 1 . . . . . . . . . . . 1 . . . . . . . . . . 1 2 . Network Hub 1 | . . . . . . . . . . . . . . . . . . . 1 . . . . . . . . . . . . . Machines Sabotaged . | . . . . . . . . . . . . . . . . . . . . . . . . . . . . . . . . . Garrisons Compromised . | . . . . . . . . . . . . . . . . . . . . . . . . . . . . . . . . . Overloaded Fab Kills . | . . . . . . . . . . . . . . . . . . . . . . . . . . . . . . . . . Hacking | -11 -10 -10 -9 -9 -9 -8 -8 -7 -7 -7 -7 -7 -7 -6 -6 -6 -6 -6 -6 -5 -5 -5 -5 -4 -4 -4 -4 -4 -3 -3 -2 -2 --------- Run | Scr Mat Min Mat Min Exi Min Mat Fac Was Fac Low Low Dat Pro Fac Ext Cet Arc Hub Fac Upp Upp Zhi Pro Fac Upp Upp War Pro Res Res Tes Machines Accessed 82 | . 6 1 7 1 2 . 13 1 . 8 1 . 4 . 4 4 1 . 3 4 . 1 4 . 1 . 1 4 . 4 3 4 Terminals 44 | . 5 . 6 . . . 9 . . 4 . . . . 4 4 1 . 2 1 . 1 . . . . . . . 3 1 3 Fabricators 5 | . . . . . . . . 1 . 1 . . . . . . . . . 2 . . . . . . . . . . 1 . Repair Stations 8 | . 1 . 1 . . . 2 . . 1 . . . . . . . . . 1 . . . . 1 . . . . . . 1 Recycling Units 1 | . . . . . . . . . . 1 . . . . . . . . . . . . . . . . . . . . . . Scanalyzers 1 | . . . . . . . 1 . . . . . . . . . . . . . . . . . . . . . . . . . Garrison Access 5 | . . . . . . . 1 . . 1 . . . . . . . . 1 . . . . . . . . . . 1 1 . Total Hacks 263 | . 21 1 22 1 2 . 41 3 . 24 1 . 24 . 14 12 2 . 9 16 . 1 17 . 6 . 1 4 . 14 10 17 Successful 154 | . 10 1 13 1 2 . 21 . . 11 1 . 24 . 7 7 . . 3 8 . 1 17 . 3 . 1 4 . 9 3 7 Failed 107 | . 10 . 8 . . . 20 3 . 13 . . . . 7 5 2 . 6 8 . . . . 3 . . . . 5 7 10 Catastrophic 17 | . 1 . 3 . . . . . . 2 . . . . 2 . 2 . . 2 . . . . . . . . . . 1 4 Database Lockouts 2 | . 1 . 1 . . . . . . . . . . . . . . . . . . . . . . . . . . . . . Manual 98 | . 11 . 11 . 1 . 14 3 . 11 . . . . 7 9 1 . 3 6 . . . . . . . 1 . 5 4 11 Terminals 149 | . 18 . 19 . . . 26 . . 13 . . . . 14 12 2 . 6 4 . 1 . . . . . . . 13 6 15 Fabricators 13 | . . . . . . . . 3 . 4 . . . . . . . . . 4 . . . . . . . . . . 2 . Repair Stations 34 | . 3 . 3 . . . 8 . . 4 . . . . . . . . . 8 . . . . 6 . . . . . . 2 Recycling Units 1 | . . . . . . . . . . 1 . . . . . . . . . . . . . . . . . . . . . . Scanalyzers 5 | . . . . . . . 5 . . . . . . . . . . . . . . . . . . . . . . . . . Garrison Access 10 | . . . . . . . 2 . . 2 . . . . . . . . 3 . . . . . . . . . . 1 2 . Terminal Hacks 99 | . 7 1 8 1 2 . 8 . . 4 1 . 24 . 4 5 . . 1 1 . 1 17 . . . 1 4 . 4 2 3 Record 18 | . . . . . 1 . . . . . . . 8 . . . . . . . . 1 5 . . . . 3 . . . . Part Schematic 14 | . . . . . . . . . . . . . 10 . . . . . . . . . 4 . . . . . . . . . Robot Schematic 5 | . . . . . . . . . . . . . 3 . 1 . . . . . . . . . . . . . . . 1 . Robot Analysis 12 | . 2 . 2 . . . 1 . . 2 . . . . . . . . . . . . 4 . . . . . . . . 1 Prototype ID Bank 19 | . 3 . 2 . . . 4 . . 1 . . 3 . 1 1 . . . . . . 4 . . . . . . . . . Open Door 5 | . . 1 . 1 . . . . . . 1 . . . . . . . . . . . . . . . 1 1 . . . . Branch Access Points 4 | . . . . . . . . . . 1 . . . . 1 . . . . 1 . . . . . . . . . 1 . . Emergency Access Points 1 | . . . . . . . . . . . . . . . . . . . . . . . . . . . . . . . . 1 Machine Index 2 | . . . . . . . . . . . . . . . . . . . . . . . . . . . . . . 1 1 . Terminal Index 2 | . . . 2 . . . . . . . . . . . . . . . . . . . . . . . . . . . . . Alert Level 3 | . 2 . . . . . . . . . . . . . . . . . 1 . . . . . . . . . . . . . Unreport Threat 5 | . . . 2 . . . . . . . . . . . . 1 . . . . . . . . . . . . . 1 . 1 Locate Traps 4 | . . . . . . . 2 . . . . . . . . 2 . . . . . . . . . . . . . . . . Recall Investigation 1 | . . . . . . . . . . . . . . . . 1 . . . . . . . . . . . . . . . . Recall Extermination 1 | . . . . . . . . . . . . . . . . . . . . . . . . . . . . . . 1 . . Hauler Manifests 2 | . . . . . . . 1 . . . . . . . 1 . . . . . . . . . . . . . . . . . EX-Prototype ID Bank 1 | . . . . . 1 . . . . . . . . . . . . . . . . . . . . . . . . . . . Fabricator Hacks 1 | . . . . . . . . . . 1 . . . . . . . . . . . . . . . . . . . . . . Build 1 | . . . . . . . . . . 1 . . . . . . . . . . . . . . . . . . . . . . Repair Station Hacks 24 | . 2 . 2 . . . 5 . . 4 . . . . . . . . . 6 . . . . 3 . . . . . . 2 Scan Component 13 | . 1 . 1 . . . 3 . . 2 . . . . . . . . . 3 . . . . 2 . . . . . . 1 Repair 11 | . 1 . 1 . . . 2 . . 2 . . . . . . . . . 3 . . . . 1 . . . . . . 1 Recycling Unit Hacks . | . . . . . . . . . . . . . . . . . . . . . . . . . . . . . . . . . Scanalyzer 5 | . . . . . . . 5 . . . . . . . . . . . . . . . . . . . . . . . . . Insert Component 2 | . . . . . . . 2 . . . . . . . . . . . . . . . . . . . . . . . . . Analyze 3 | . . . . . . . 3 . . . . . . . . . . . . . . . . . . . . . . . . . Garrison Access Hacks 3 | . . . . . . . . . . . . . . . . . . . 1 . . . . . . . . . . 1 1 . Seal Access 3 | . . . . . . . . . . . . . . . . . . . 1 . . . . . . . . . . 1 1 . Unauthorized Hacks 22 | . 1 . 3 . . . 3 . . 2 . . . . 3 2 . . 1 1 . . . . . . . . . 4 . 2 Terminals 19 | . 1 . 3 . . . 2 . . . . . . . 3 2 . . 1 1 . . . . . . . . . 4 . 2 Assimilate 3 | . . . . . . . 1 . . . . . . . . . . . . . . . . . . . . . . 2 . . Botnet 10 | . . . 1 . . . . . . . . . . . 2 1 . . 1 1 . . . . . . . . . 2 . 2 Disrupt 2 | . . . 1 . . . . . . . . . . . . 1 . . . . . . . . . . . . . . . . Operators 4 | . 1 . 1 . . . 1 . . . . . . . 1 . . . . . . . . . . . . . . . . . Fabricators 1 | . . . . . . . . . . 1 . . . . . . . . . . . . . . . . . . . . . . Fabnet 1 | . . . . . . . . . . 1 . . . . . . . . . . . . . . . . . . . . . . Repair Stations . | . . . . . . . . . . . . . . . . . . . . . . . . . . . . . . . . . Recycling Units 1 | . . . . . . . . . . 1 . . . . . . . . . . . . . . . . . . . . . . Tunnel 1 | . . . . . . . . . . 1 . . . . . . . . . . . . . . . . . . . . . . Scanalyzers . | . . . . . . . . . . . . . . . . . . . . . . . . . . . . . . . . . Garrison Access 1 | . . . . . . . 1 . . . . . . . . . . . . . . . . . . . . . . . . . Jam 1 | . . . . . . . 1 . . . . . . . . . . . . . . . . . . . . . . . . . Data Cores Recovered . | . . . . . . . . . . . . . . . . . . . . . . . . . . . . . . . . . Used . | . . . . . . . . . . . . . . . . . . . . . . . . . . . . . . . . . Hacking Detections 58 | . 6 . 6 . . . 13 1 . 6 . . . . 4 4 1 . 3 4 . . . . 1 . . . . 3 2 4 Full Trace Events 8 | . . . 1 . . . 2 . . 2 . . . . 1 . . . . . . . . . 1 . . . . 1 . . Feedback Events 2 | . . . . . . . . . . 1 . . . . . . . . . . . . . . . . . . . 1 . . Corruption 2 | . . . . . . . . . . 1 . . . . . . . . . . . . . . . . . . . 1 . . Feedback Blocked . | . . . . . . . . . . . . . . . . . . . . . . . . . . . . . . . . . Robot Schematics Acquired 7 | . . . . . . . . . . . . . 3 . 1 . . . . . . . . . . . . . . . 1 2 Robots Built 2 | . . . . . . . . . . 2 . . . . . . . . . . . . . . . . . . . . . . Authchips . | . . . . . . . . . . . . . . . . . . . . . . . . . . . . . . . . . Time 116 | . . . . . . . . . . 116 . . . . . . . . . . . . . . . . . . . . . . Total Robot Build Rating 6 | . . . . . . . . . . 6 . . . . . . . . . . . . . . . . . . . . . . Part Schematics Acquired 18 | . . . . . . . 2 . . . . . 10 . . . . . . . . . 4 . . . . . . . . 2 Parts Built . | . . . . . . . . . . . . . . . . . . . . . . . . . . . . . . . . . Authchips . | . . . . . . . . . . . . . . . . . . . . . . . . . . . . . . . . . Time . | . . . . . . . . . . . . . . . . . . . . . . . . . . . . . . . . . Total Part Build Rating . | . . . . . . . . . . . . . . . . . . . . . . . . . . . . . . . . . Parts Repaired 11 | . 1 . 1 . . . 2 . . 2 . . . . . . . . . 3 . . . . 1 . . . . . . 1 Time 679 | . 32 . 32 . . . 94 . . 112 . . . . . . . . . 315 . . . . 40 . . . . . . 54 Parts Recycled . | . . . . . . . . . . . . . . . . . . . . . . . . . . . . . . . . . Recycled Matter . | . . . . . . . . . . . . . . . . . . . . . . . . . . . . . . . . . Retrieved Matter . | . . . . . . . . . . . . . . . . . . . . . . . . . . . . . . . . . Retrieved Components . | . . . . . . . . . . . . . . . . . . . . . . . . . . . . . . . . . Parts Scanalyzed 2 | . . . . . . . 2 . . . . . . . . . . . . . . . . . . . . . . . . . Part Schematics Acquired 2 | . . . . . . . 2 . . . . . . . . . . . . . . . . . . . . . . . . . Parts Damaged . | . . . . . . . . . . . . . . . . . . . . . . . . . . . . . . . . . Bothacking | -11 -10 -10 -9 -9 -9 -8 -8 -7 -7 -7 -7 -7 -7 -6 -6 -6 -6 -6 -6 -5 -5 -5 -5 -4 -4 -4 -4 -4 -3 -3 -2 -2 ------------ Run | Scr Mat Min Mat Min Exi Min Mat Fac Was Fac Low Low Dat Pro Fac Ext Cet Arc Hub Fac Upp Upp Zhi Pro Fac Upp Upp War Pro Res Res Tes Used RIF Installer . | . . . . . . . . . . . . . . . . . . . . . . . . . . . . . . . . . Robots Hacked 6 | . . . . . . . . . . . . . . . 2 . 1 . 3 . . . . . . . . . . . . . Non-combat . | . . . . . . . . . . . . . . . . . . . . . . . . . . . . . . . . . Combat 6 | . . . . . . . . . . . . . . . 2 . 1 . 3 . . . . . . . . . . . . . Robot Hacks Applied . | . . . . . . . . . . . . . . . . . . . . . . . . . . . . . . . . . Relay Couplers Released 10 | . . . . . . . . . . 3 . . . . . . . . . . . . . . . . . . . 3 4 . Machine Destruction 3 | . . . . . . . . . . . . . . . . . . . . . . . . . . . . . . 3 . . Programmers 7 | . . . . . . . . . . 3 . . . . . . . . . . . . . . . . . . . . 4 . Fabnet Peak Effective % 3 | . . . . . . . . . . . . . . 3 3 3 3 3 3 1 1 1 1 . . . . . . . . . Autooverrided 6 | . . . . . . . . . . . . . . . 2 . 1 . 3 . . . . . . . . . . . . . Robots Rewired 20 | . . . . . . . . . . . . . . . . 14 . . . . . . . . . . . 3 . . . 3 Allies Hacked 3 | . . . . . . . . . . 2 . . . . . . . . . . . . . . . . . . . 1 . . Hacks Repelled . | . . . . . . . . . . . . . . . . . . . . . . . . . . . . . . . . . Allies | -11 -10 -10 -9 -9 -9 -8 -8 -7 -7 -7 -7 -7 -7 -6 -6 -6 -6 -6 -6 -5 -5 -5 -5 -4 -4 -4 -4 -4 -3 -3 -2 -2 -------- Run | Scr Mat Min Mat Min Exi Min Mat Fac Was Fac Low Low Dat Pro Fac Ext Cet Arc Hub Fac Upp Upp Zhi Pro Fac Upp Upp War Pro Res Res Tes Total Allies 64 | . . 3 . . . . 1 . 20 2 . . . 1 2 19 6 . 3 . . . . . . . . 3 . 1 . 3 Largest Group 19 | . . 3 3 . . . 1 . 19 16 2 . . 1 2 5 7 6 6 . . . . . . . . 3 2 2 . 2 Highest-Rated Group 686 | . . 40 40 . . . 10 . 475 373 52 . . 96 128 277 686 639 509 . . . . . . . . 186 121 121 . 150 Highest-Rated Ally 159 | . . 16 16 . . . 10 . 36 31 26 . . 96 96 159 159 159 96 . . . . . . . . 65 65 65 . 79 Total Orders 16 | . . 1 2 . 3 . 2 . . . . . . . . . . 2 . . . . . . . . . . . 6 . . STAY 7 | . . 1 1 . . . 1 . . . . . . . . . . 1 . . . . . . . . . . . 3 . . FOLLOW 6 | . . . 1 . . . 1 . . . . . . . . . . 1 . . . . . . . . . . . 3 . . RETURN 3 | . . . . . 3 . . . . . . . . . . . . . . . . . . . . . . . . . . . Ally Attacks 486 | . . . 29 . 67 . . . 1 72 . . . 2 35 104 31 28 81 . . . . . . . . 4 . 4 . 28 Total Damage 13434 | . . . 318 . 530 . . . 20 1402 . . . 43 1205 2199 1037 1293 3286 . . . . . . . . 261 . 107 . 1733 Kills 91 | . . . 5 . 2 . . . . 13 . . . 1 8 14 6 4 28 . . . . . . . . 1 . . . 9 Allies Corrupted 4 | . . . . . 1 . . . . 1 . . . . . . . . . . . . . . . . . . . . . 2 Allies Melted 4 | . . . . . . . . . . 1 . . . . . . . . . . . . . . . . . 3 . . . . Intel | -11 -10 -10 -9 -9 -9 -8 -8 -7 -7 -7 -7 -7 -7 -6 -6 -6 -6 -6 -6 -5 -5 -5 -5 -4 -4 -4 -4 -4 -3 -3 -2 -2 ------- Run | Scr Mat Min Mat Min Exi Min Mat Fac Was Fac Low Low Dat Pro Fac Ext Cet Arc Hub Fac Upp Upp Zhi Pro Fac Upp Upp War Pro Res Res Tes Robot Analysis Total 12 | . 2 . 2 . . . 1 . . 2 . . . . . . . . . . . . 4 . . . . . . . . 1 Derelict Logs Recovered 8 | . . 1 . 1 . . . . . . 1 2 . 1 . . . . . . 1 . . . . 1 . . . . . . Drone Launches 18 | . . . . . 17 . . . . . . . . . 1 . . . . . . . . . . . . . . . . . Drone Recoveries 16 | . . . . . 15 . . . . . . . . . 1 . . . . . . . . . . . . . . . . . Exploration | -11 -10 -10 -9 -9 -9 -8 -8 -7 -7 -7 -7 -7 -7 -6 -6 -6 -6 -6 -6 -5 -5 -5 -5 -4 -4 -4 -4 -4 -3 -3 -2 -2 ------------- Run | Scr Mat Min Mat Min Exi Min Mat Fac Was Fac Low Low Dat Pro Fac Ext Cet Arc Hub Fac Upp Upp Zhi Pro Fac Upp Upp War Pro Res Res Tes Turns Passed 35964 | 39 1326 1545 1742 762 2742 896 3146 61 644 1620 878 536 166 741 975 2348 538 963 1354 1337 673 467 270 1032 191 941 489 1533 1046 1728 1626 1609 Spaces Moved 16644 | 33 821 706 993 572 1314 577 1068 46 334 776 497 273 101 329 453 917 234 324 389 403 229 272 157 467 74 485 275 891 640 654 772 568 Core 72 | 3 . . . . . . . . . . . . . . . . . . . . . . . . . . . . . . . 69 Treads 12227 | . 478 706 56 . 777 . . . 99 776 497 273 101 329 453 917 234 324 389 403 229 272 157 467 74 485 275 891 640 654 772 499 Legs 478 | . . . . . . . 197 46 235 . . . . . . . . . . . . . . . . . . . . . . . Wheels 3867 | 30 343 . 937 572 537 577 871 . . . . . . . . . . . . . . . . . . . . . . . . . Hover . | . . . . . . . . . . . . . . . . . . . . . . . . . . . . . . . . . Flight . | . . . . . . . . . . . . . . . . . . . . . . . . . . . . . . . . . Fastest Speed 50 | 50 80 160 110 125 125 140 120 126 126 160 160 160 160 160 160 160 160 160 160 160 160 160 160 160 160 160 160 160 160 160 160 50 Average Speed 157 | 78 130 206 129 125 174 140 154 126 136 160 160 160 160 160 160 160 160 160 160 160 160 160 160 160 160 160 160 160 160 160 171 150 Slowest Speed 250 | 100 160 240 240 125 240 140 200 126 240 160 160 160 160 160 160 160 160 160 160 240 160 160 160 160 160 160 160 160 160 160 245 250 Overloaded Moves . | . . . . . . . . . . . . . . . . . . . . . . . . . . . . . . . . . Propulsion Burnouts . | . . . . . . . . . . . . . . . . . . . . . . . . . . . . . . . . . Robots Hopped . | . . . . . . . . . . . . . . . . . . . . . . . . . . . . . . . . . Cave-ins Triggered 1 | . . . . . . . . . . . . . . . . 1 . . . . . . . . . . . . . . . . Teleports 1 | . . . . . . . . . . . . . . . . . . . . . . . . . . . . . . . . 1 Exploration Rate (%) 57 | 4 93 97 84 89 87 94 80 4 89 26 58 49 71 53 11 75 66 96 48 13 44 45 60 54 2 70 50 87 78 17 23 73 Regions Visited 32 Branch Regions 21 Pre-discovered Areas 10 | . . . . 1 1 . . . . 1 . . 1 1 . . . . . . 1 . 3 . . . . 1 . . . . Known Exits Taken 15 | . . . . . . 1 . . . 1 . . . . 1 . . . . 1 1 1 1 1 1 1 1 1 1 1 1 . Unknown Exits Taken 15 | 1 1 1 1 1 1 . 1 . . . 1 1 1 1 . 1 1 1 1 . . . . . . . . . . . . . Scrap Searched 20 | . . 2 . 1 . 2 . . . . 1 2 . 5 . . . . . . 1 2 . . . 1 1 . 2 . . . Spaces Dug 132 | . 2 . 15 . . 32 . . . . . . . . . 18 . . . 11 . . . . . . . 6 9 5 . 34 Terrain Destroyed 953 | . 25 . 27 11 27 43 84 7 6 19 26 36 . 25 11 61 3 23 209 34 . 7 . 2 5 . 9 74 11 66 . 102 Melee . | . . . . . . . . . . . . . . . . . . . . . . . . . . . . . . . . . Projectile 285 | . 2 . . . 10 1 . . 5 4 2 3 . 3 11 61 3 23 45 34 . 7 . 2 5 . 9 17 11 10 . 17 AOE 658 | . 23 . 27 11 16 42 84 7 . 10 24 33 . 22 . . . . 164 . . . . . . . . 57 . 55 . 83 Terrain Rammed . | . . . . . . . . . . . . . . . . . . . . . . . . . . . . . . . . . Walls Destroyed . | . . . . . . . . . . . . . . . . . . . . . . . . . . . . . . . . . Machines Disabled . | . . . . . . . . . . . . . . . . . . . . . . . . . . . . . . . . . Actions | -11 -10 -10 -9 -9 -9 -8 -8 -7 -7 -7 -7 -7 -7 -6 -6 -6 -6 -6 -6 -5 -5 -5 -5 -4 -4 -4 -4 -4 -3 -3 -2 -2 --------- Run | Scr Mat Min Mat Min Exi Min Mat Fac Was Fac Low Low Dat Pro Fac Ext Cet Arc Hub Fac Upp Upp Zhi Pro Fac Upp Upp War Pro Res Res Tes Total 24548 | 42 972 763 1271 595 1623 654 2409 49 494 1080 562 330 106 525 632 1646 363 720 940 1004 534 287 176 734 138 649 308 982 649 1129 1029 1153 Wait 5670 | . 52 26 128 1 144 67 1203 . 107 240 34 29 . 165 90 435 42 355 412 538 296 7 . 240 50 157 17 26 . 273 192 344 Move 16612 | 32 820 705 992 571 1313 576 1067 46 333 775 496 272 100 328 452 915 233 323 388 402 228 271 156 466 73 484 274 890 639 653 771 568 Hop . | . . . . . . . . . . . . . . . . . . . . . . . . . . . . . . . . . Pick Up 159 | 4 18 3 11 1 21 . 10 . 6 4 2 . . . 6 4 10 3 12 7 2 . 2 3 1 1 1 7 1 2 6 11 Fast Attach 145 | 6 2 1 7 1 13 . 13 . 3 5 2 . 3 3 8 2 5 6 6 1 . . 8 1 3 1 1 9 . 2 10 23 Attach 130 | . 2 . 3 . 8 . 6 2 1 2 . 1 . 3 7 2 4 4 9 5 1 . 1 3 2 1 3 1 2 26 9 22 Detach 56 | . . . 1 . 2 . 2 . . 1 . . . 3 1 . 1 1 3 1 . . . . 1 1 . . . 22 6 10 Swap 192 | . 9 1 22 6 15 5 13 . 7 4 5 2 . . 11 10 9 2 13 7 5 2 . 5 1 3 2 2 . 18 4 9 Drop 254 | . 8 3 18 4 37 . 24 . 17 7 3 . 3 . 9 6 18 3 14 4 2 . 9 4 3 1 3 16 1 3 6 28 Fire 1083 | . 61 19 88 11 70 6 71 1 20 42 18 26 . 22 47 101 41 20 79 39 . 7 . 12 4 . 7 11 6 119 21 114 Melee . | . . . . . . . . . . . . . . . . . . . . . . . . . . . . . . . . . Ram 3 | . . . 1 . . . . . . . . . . . . . . . . . . . . . . . . . . . . 2 Kick . | . . . . . . . . . . . . . . . . . . . . . . . . . . . . . . . . . Crush 35 | . . 5 . . . . . . . . . . . . 1 6 . 3 4 . . . . . . . . . . 11 4 1 Escape Stasis 1 | . . . . . . . . . . . . . . . . 1 . . . . . . . . . . . . . . . . Rewire 208 | . . . . . . . . . . . 2 . . 1 . 164 . . . . . . . . . . . 20 . . . 21 Trap . | . . . . . . . . . . . . . . . . . . . . . . . . . . . . . . . . . Miscellaneous . | . . . . . . . . . . . . . . . . . . . . . . . . . . . . . . . . . Route ------- -11/Scrapyard -10/Materials (discovered 5 exits: *Mat x3 / *Min x2) -10/Mines (discovered 2 exits: *Mat x2) -9/Materials (discovered 4 exits: *Mat x3 / *Min) -9/Mines (discovered 3 exits: *Mat x2 / *Exi) -9/Exiles (discovered 2 exits: [*Min x2]) -8/Mines (discovered 2 exits: *Mat x2) -8/Materials (discovered 3 exits: *Fac x3) -7/Factory -7/Waste -7/Factory (discovered 4 exits: *Fac / Sto / *Low x2) -7/Lower Caves -7/Lower Caves (discovered 2 exits: *Fac / *Dat) -7/Data Miner -6/Proximity Caves -6/Factory (discovered 5 exits: *Fac / Low x2 / *Ext x2) -6/Extension (discovered 2 exits: *Fac / *Cet) -6/Cetus (discovered 2 exits: *Fac / [*Arc]) -6/Archives (discovered 3 exits: *Fac / *Hub x2) -6/Hub_04(d) (discovered 2 exits: *Fac x2) -5/Factory (discovered 2 exits: *Upp x2) -5/Upper Caves -5/Upper Caves -5/Zhirov -4/Proximity Caves -4/Factory -4/Upper Caves -4/Upper Caves -4/Warlord -3/Proximity Caves -3/Research (discovered 3 exits: *Res / Qua x2) -2/Research (discovered 2 exits: *Acc / *Tes) -2/Testing History --------- Turn | Location | Event 9 | -11/Scrapyard | Discovered new exit (range 15) 40 | -11/Scrapyard | Entered Materials 233 | -10/Materials | Discovered new exit (range 6) 311 | -10/Materials | Build established: Mutant 495 | -10/Materials | Discovered new exit (range 10) 763 | -10/Materials | Central database locked down 840 | -10/Materials | Discovered new exit (range 16) 866 | -10/Materials | Discovered new exit (range 8) 966 | -10/Materials | Discovered new exit (range 9) 1075 | -10/Materials | Repaired Med. Armor Plating? 1366 | -10/Materials | Entered Mines 1449 | -10/Mines | Learned Materials trap positions 1538 | -10/Mines | Met a Derelict shopkeep closing up shop 1817 | -10/Mines | Received a Rocket Launcher from a helpful Derelict 1854 | -10/Mines | Discovered new exit (range 14) 1928 | -10/Mines | Assisted by bots powering up and referring to "LRC-V3" 2419 | -10/Mines | Core integrity fell below 50% 2436 | -10/Mines | Discovered new exit (range 4) 2911 | -10/Mines | Entered Materials 2911 | -9/Materials | Accompanied by 3 allies 2911 | -9/Materials | Evolved 2 slots: Utility x1, Weapon x1 2912 | -9/Materials | Loaded intel: 13 trap records 3257 | -9/Materials | Build established: Tank 3567 | -9/Materials | Repaired Med. Armor Plating 3628 | -9/Materials | Discovered new exit (range 6) 3857 | -9/Materials | Discovered new exit (range 15) 3909 | -9/Materials | Central database locked down 4277 | -9/Materials | Discovered new exit (range 7) 4625 | -9/Materials | Discovered new exit (range 12) 4653 | -9/Materials | Entered Mines 4671 | -9/Mines | Discovered new exit (range 11) 4683 | -9/Mines | Found the Drone Emporium 4689 | -9/Mines | Found Prototype Device 4689 | -9/Mines | Identified Thief Drone Bay 4771 | -9/Mines | Identified exit to Materials 4825 | -9/Mines | Deemed a non-threat by the Exiles lab entrance 4827 | -9/Mines | Discovered new exit (range 5) 5008 | -9/Mines | Learned location of Storage (-7) 5102 | -9/Mines | Found a hidden stash of uninstalled traps 5415 | -9/Mines | Entered Exiles 5435 | -9/Exiles | Discovered new exit (range 15) 5447 | -9/Exiles | Met 8R-AWN 5464 | -9/Exiles | Met EX-HEX 5508 | -9/Exiles | Met EX-BIN 5525 | -9/Exiles | Aligned with FarCom system 5527 | -9/Exiles | Given EX-Vault access code 5555 | -9/Exiles | Opened EX-Vault 5566 | -9/Exiles | Found Supersonic Drone Bay 5594 | -9/Exiles | Warned to stay clear of 0b10 Research branches 5628 | -9/Exiles | Met EX-DEC 5636 | -9/Exiles | Learned location of Zion (-6) 5714 | -9/Exiles | Discovered new exit (range 10) 6333 | -9/Exiles | Build established: Mutant 6388 | -9/Exiles | Attacked by the Exiles 6628 | -9/Exiles | Destroyed 8R-AWN 6654 | -9/Exiles | Found 8R-AWN's Boregun 6661 | -9/Exiles | Found 8R-AWN's Boregun 6670 | -9/Exiles | Found Prototype Device 6670 | -9/Exiles | Identified AS-neutralizer No. 17b 7133 | -9/Exiles | Build established: Tank 7322 | -9/Exiles | Allies destroyed EX-BIN 7387 | -9/Exiles | Allies destroyed EX-HEX 7433 | -9/Exiles | Destroyed EX-DEC 7502 | -9/Exiles | Found Prototype Processor 7664 | -9/Exiles | Build established: Mutant 7913 | -9/Exiles | Found Prototype Device 7914 | -9/Exiles | Identified System Purifier 8157 | -9/Exiles | Entered Mines 8175 | -8/Mines | Build established: Tank 8184 | -8/Mines | Discovered exit to Materials (range 16) 8242 | -8/Mines | Discovered exit to Materials (range 15) 9053 | -8/Mines | Entered Materials 9053 | -8/Materials | Evolved 2 slots: Utility x2 9481 | -8/Materials | Discovered new exit (range 6) 9662 | -8/Materials | Destroyed 11 combat bots 9984 | -8/Materials | Repaired Adv. Transmission Jammer 10017 | -8/Materials | Repaired Med. Armor Plating 10087 | -8/Materials | Discovered new exit (range 16) 10601 | -8/Materials | Discovered new exit (range 4) 11053 | -8/Materials | First assault squad dispatched 11116 | -8/Materials | Destroyed 7 combat bots 11369 | -8/Materials | Build established: Mutant 12199 | -8/Materials | Entered Factory 12199 | -7/Factory | Evolved 2 slots: Propulsion x2 12260 | -7/Factory | Sucked down chute 12260 | -7/Factory | Entered Waste 12261 | -7/Waste | Met a frightened Derelict 12268 | -7/Waste | Identified Exp. Core Analyzer 12422 | -7/Waste | Spotted C-40 Crusher 12430 | -7/Waste | Destroyed C-40 Crusher 12434 | -7/Waste | Destroyed C-40 Crusher 12437 | -7/Waste | Destroyed C-40 Crusher 12452 | -7/Waste | Found Damper Plating 12461 | -7/Waste | Spotted C-40 Crusher 12465 | -7/Waste | Destroyed C-40 Crusher 12481 | -7/Waste | Spotted C-40 Crusher 12483 | -7/Waste | Destroyed C-40 Crusher 12527 | -7/Waste | Spotted C-40 Crusher 12533 | -7/Waste | Destroyed C-40 Crusher 12548 | -7/Waste | Build established: Scavenger-Gunner 12632 | -7/Waste | Discovered new exit (range 14) 12644 | -7/Waste | Warlord forces began an assault 12782 | -7/Waste | Found Damper Plating 12790 | -7/Waste | Found Damper Plating 12824 | -7/Waste | Found Damper Plating 12904 | -7/Waste | Entered Factory 12904 | -7/Factory | Accompanied by 16 allies 13465 | -7/Factory | Discovered new exit (range 15) 13595 | -7/Factory | Identified exit to Storage 13595 | -7/Factory | Identified exit to Lower Caves 13832 | -7/Factory | Fabricated H-55 Commando? 13935 | -7/Factory | Repaired Hvy. Treads 13992 | -7/Factory | Repaired Hvy. Treads 14524 | -7/Factory | Entered Lower Caves 14524 | -7/Lower Caves | Accompanied by 2 allies 14594 | -7/Lower Caves | Learned Factory emergency access door positions 15008 | -7/Lower Caves | Build established: Gunner 15052 | -7/Lower Caves | Discovered new exit (range 10) 15402 | -7/Lower Caves | Entered another Lower Caves area 15435 | -7/Lower Caves | Learned Factory stockpile data 15491 | -7/Lower Caves | Discovered new exit (range 9) 15862 | -7/Lower Caves | Learned Factory terminal intel 15917 | -7/Lower Caves | Discovered new exit (range 8) 15938 | -7/Lower Caves | Entered Data Miner 15940 | -7/Data Miner | Discovered new exit (range 6) 15970 | -7/Data Miner | Met Data Miner 16010 | -7/Data Miner | Learned location of Section 7 (-3) 16010 | -7/Data Miner | Acquired the access code to Warlord's prototype stash 16039 | -7/Data Miner | Received God Mode back door access code from Data Miner 16104 | -7/Data Miner | Entered Proximity Caves 16172 | -6/Proximity Caves | Escorted by Enhanced Grunt 16252 | -6/Proximity Caves | Build established: Mutant 16586 | -6/Proximity Caves | Received a Behemoth hack from an annoying Tinkerer 16805 | -6/Proximity Caves | Discovered new exit (range 16) 16845 | -6/Proximity Caves | Entered Factory 16845 | -6/Factory | Accompanied by 1 ally 16845 | -6/Factory | Evolved 2 slots: Utility x2 16846 | -6/Factory | Discovered new exit (range 16) 16848 | -6/Factory | Loaded intel: 28 terminal locations 17004 | -6/Factory | Incoming investigation squad redirected 17283 | -6/Factory | Identified exit to Lower Caves 17283 | -6/Factory | Identified exit to Extension 17820 | -6/Factory | Entered Extension 17919 | -6/Extension | Build established: Scavenger-Gunner 18525 | -6/Extension | Rescued a captive Derelict 18525 | -6/Extension | Rescued a captive Derelict 18995 | -6/Extension | Disrupted transfer network 19437 | -6/Extension | Build established: Scavenger-Mutant 19537 | -6/Extension | Crushed by falling debris 19555 | -6/Extension | Rescued a captive Derelict 19652 | -6/Extension | Rescued a captive Derelict 19755 | -6/Extension | Rescued A7 20096 | -6/Extension | Build established: Scavenger-Gunner 20112 | -6/Extension | Discovered new exit (range 10) 20113 | -6/Extension | Discovered new exit (range 6) 20168 | -6/Extension | Entered Cetus 20168 | -6/Cetus | Accompanied by 2 allies (A7) 20173 | -6/Cetus | Acquired a Cetus Manufacturing Module code from A7 20191 | -6/Cetus | Spotted Cetus Guard 20191 | -6/Cetus | Spotted Cetus Guard 20201 | -6/Cetus | Allies destroyed Cetus Guard 20201 | -6/Cetus | Spotted Cetus Guard 20204 | -6/Cetus | Destroyed Cetus Guard 20204 | -6/Cetus | Spotted Cetus Guard 20216 | -6/Cetus | Allies destroyed Cetus Guard 20222 | -6/Cetus | Allies destroyed Cetus Guard 20262 | -6/Cetus | System corruption reached 10% 20371 | -6/Cetus | Started Cetus Manufacturing Module 20396 | -6/Cetus | Manufactured an Enhanced Grunt 20396 | -6/Cetus | Discovered new exit (range 16) 20421 | -6/Cetus | Manufactured an Enhanced Grunt 20429 | -6/Cetus | Spotted Cetus Guard 20429 | -6/Cetus | Spotted Cetus Guard 20438 | -6/Cetus | Allies destroyed Cetus Guard 20438 | -6/Cetus | Spotted Cetus Guard 20442 | -6/Cetus | Destroyed Cetus Guard 20442 | -6/Cetus | Destroyed Cetus Guard 20442 | -6/Cetus | Spotted Cetus Guard 20446 | -6/Cetus | Manufactured an Enhanced Grunt 20448 | -6/Cetus | Destroyed Cetus Guard 20466 | -6/Cetus | Discovered new exit (range 15) 20471 | -6/Cetus | Manufactured an Enhanced Grunt 20476 | -6/Cetus | Met Revision 17 20496 | -6/Cetus | Manufactured an Enhanced Grunt 20658 | -6/Cetus | Escorted A7 to Cetus Mainframe 20706 | -6/Cetus | Entered Archives 20706 | -6/Archives | Accompanied by 6 allies (A7) 20711 | -6/Archives | Received a hacking code to weaken MAIN.C 20838 | -6/Archives | Discovered new exit (range 16) 20960 | -6/Archives | Discovered new exit (range 13) 21027 | -6/Archives | Discovered new exit (range 15) 21669 | -6/Archives | Entered Hub_04(d) 21669 | -6/Hub_04(d) | Accompanied by 5 allies 22019 | -6/Hub_04(d) | First assault squad dispatched 22037 | -6/Hub_04(d) | Discovered new exit (range 16) 22092 | -6/Hub_04(d) | Found Prototype Device 22184 | -6/Hub_04(d) | Discovered new exit (range 14) 22236 | -6/Hub_04(d) | Spotted B-75 Beast 22342 | -6/Hub_04(d) | Network Hub disabled 22397 | -6/Hub_04(d) | Incoming assault squad redirected 22687 | -6/Hub_04(d) | Spotted Lightning 22693 | -6/Hub_04(d) | Spotted Lightning 22693 | -6/Hub_04(d) | Spotted Lightning 22698 | -6/Hub_04(d) | Destroyed Lightning 22701 | -6/Hub_04(d) | Destroyed Lightning 22726 | -6/Hub_04(d) | Found Prototype Device 22726 | -6/Hub_04(d) | Identified Exp. EM Disruption Field 22741 | -6/Hub_04(d) | Destroyed Lightning 22757 | -6/Hub_04(d) | Found Prototype Device 22757 | -6/Hub_04(d) | Identified Exp. Phase Shifter 22780 | -6/Hub_04(d) | Found Prototype Processor 22821 | -6/Hub_04(d) | Spotted Lightning 22830 | -6/Hub_04(d) | Spotted Lightning 22833 | -6/Hub_04(d) | Spotted Lightning 22836 | -6/Hub_04(d) | Spotted Lightning 22837 | -6/Hub_04(d) | Spotted Lightning 22837 | -6/Hub_04(d) | Spotted Lightning 22840 | -6/Hub_04(d) | Destroyed Lightning 22850 | -6/Hub_04(d) | Destroyed Lightning 22874 | -6/Hub_04(d) | Destroyed Lightning 22884 | -6/Hub_04(d) | Destroyed Lightning 22903 | -6/Hub_04(d) | Destroyed B-75 Beast 22907 | -6/Hub_04(d) | Destroyed Lightning 22920 | -6/Hub_04(d) | Destroyed Lightning 22927 | -6/Hub_04(d) | Local machine network offline 22941 | -6/Hub_04(d) | Destroyed 8 combat bots 22980 | -6/Hub_04(d) | Found Prototype Energy Cannon 22988 | -6/Hub_04(d) | Found Prototype Energy Cannon 22990 | -6/Hub_04(d) | Found Exp. Phase Shifter 23013 | -6/Hub_04(d) | Found Prototype Processor 23023 | -6/Hub_04(d) | Entered Factory 23023 | -5/Factory | Evolved 2 slots: Utility x2 23024 | -5/Factory | Identified Active Sensor Suite 23148 | -5/Factory | Repaired System Purifier 23248 | -5/Factory | Repaired Adv. KE Penetrator 23273 | -5/Factory | Build established: Scavenger-Skirmisher 23323 | -5/Factory | First assault squad dispatched 23357 | -5/Factory | Repaired Centrium Heavy Treads 23839 | -5/Factory | Incoming investigation squad redirected 24122 | -5/Factory | Destroyed 9 combat bots 24136 | -5/Factory | Identified exit to Upper Caves 24356 | -5/Factory | Incoming investigation squad redirected 24360 | -5/Factory | Entered Upper Caves 24937 | -5/Upper Caves | Learned location of Armory (-4) 25025 | -5/Upper Caves | Discovered new exit (range 6) 25031 | -5/Upper Caves | Identified exit to Upper Caves 25033 | -5/Upper Caves | Entered another Upper Caves area 25169 | -5/Upper Caves | Spotted B-75 Beast 25396 | -5/Upper Caves | Discovered new exit (range 5) 25401 | -5/Upper Caves | Identified exit to Zhirov 25500 | -5/Upper Caves | Entered Zhirov 25500 | -5/Zhirov | Discovered new exit (range 3) 25529 | -5/Zhirov | Met Zhirov 25558 | -5/Zhirov | Learned location of Quarantine (-3) 25558 | -5/Zhirov | Learned location of Testing (-2) 25558 | -5/Zhirov | Learned location of Command (-1) 25574 | -5/Zhirov | Zhirov requested help retrieving the SGEMP Prototype 25599 | -5/Zhirov | Found Alien Artifact 25599 | -5/Zhirov | Identified Integrated Dissipator 25599 | -5/Zhirov | Installed Integrated Dissipator, increased core heat dissipation (+20) 25657 | -5/Zhirov | Identified EMDS (x2) 25695 | -5/Zhirov | Found Alien Artifact 25768 | -5/Zhirov | Identified exit to Proximity Caves 25770 | -5/Zhirov | Entered Proximity Caves 26405 | -4/Proximity Caves | Identified Exp. Targeting Computer (x2) 26591 | -4/Proximity Caves | Destroyed B-86 Titan 26701 | -4/Proximity Caves | Discovered new exit (range 13) 26800 | -4/Proximity Caves | Identified exit to Factory 26802 | -4/Proximity Caves | Entered Factory 26802 | -4/Factory | Evolved 2 slots: Power x1, Utility x1 26805 | -4/Factory | Discovered new exit (range 14) 26826 | -4/Factory | Identified exit to Upper Caves 26952 | -4/Factory | Repaired Exp. Utility Shielding 26993 | -4/Factory | Entered Upper Caves 27000 | -4/Upper Caves | Learned Research stockpile data 27817 | -4/Upper Caves | Discovered new exit (range 15) 27838 | -4/Upper Caves | Identified exit to Upper Caves 27934 | -4/Upper Caves | Entered another Upper Caves area 28054 | -4/Upper Caves | P-70 Sage assimilated allied QP-HOG(S) 28153 | -4/Upper Caves | Encountered a Warlord checkpoint 28320 | -4/Upper Caves | Ambushed by wild Derelicts 28351 | -4/Upper Caves | Discovered new exit (range 15) 28419 | -4/Upper Caves | Identified exit to Warlord 28423 | -4/Upper Caves | Entered Warlord 28513 | -4/Warlord | Discovered new exit (range 9) 29000 | -4/Warlord | Found Prototype Device 29000 | -4/Warlord | Identified Minesniffer Drone Bay 29099 | -4/Warlord | Warlord's base attacked by MAIN.C 29116 | -4/Warlord | Found Prototype Launcher 29229 | -4/Warlord | Learned Armory garrison access intel 29449 | -4/Warlord | Warlord forces counterattacked 29625 | -4/Warlord | Met Warlord 29646 | -4/Warlord | Opened Warlord's prototype stash 29652 | -4/Warlord | Found Prototype Reactor 29652 | -4/Warlord | Identified Vortex Chain Reactor 29659 | -4/Warlord | Found Prototype Device 29659 | -4/Warlord | Identified Exp. Cloaking Device 29669 | -4/Warlord | Found System Purifier 29671 | -4/Warlord | Found Prototype Processor 29676 | -4/Warlord | Found Prototype Hackware 29774 | -4/Warlord | Warlord base infiltrated, sounded retreat 29845 | -4/Warlord | Found Exp. Core Analyzer 29908 | -4/Warlord | Identified Vortex Catalyst Activator 29938 | -4/Warlord | Destroyed 8 combat bots 29952 | -4/Warlord | Identified exit to Proximity Caves 29956 | -4/Warlord | Entered Proximity Caves 29956 | -3/Proximity Caves | Accompanied by 2 allies 30264 | -3/Proximity Caves | Build established: Scavenger-Tank 30757 | -3/Proximity Caves | Discovered new exit (range 13) 30775 | -3/Proximity Caves | Identified exit to Research 31002 | -3/Proximity Caves | Entered Research 31002 | -3/Research | Accompanied by 2 allies 31002 | -3/Research | Evolved 2 slots: Utility x2 31003 | -3/Research | Identified exit to Quarantine 31291 | -3/Research | Incoming investigation squad redirected 31304 | -3/Research | P-80 Master assimilated allied Archangel 7a 31414 | -3/Research | Identified System Mapper 31444 | -3/Research | Incoming investigation squad redirected 31523 | -3/Research | Incoming investigation squad redirected 31598 | -3/Research | Build established: Scavenger-Skirmisher 31792 | -3/Research | Incoming investigation squad redirected 32381 | -3/Research | Incoming investigation squad redirected 32489 | -3/Research | Destroyed 16 combat bots 32587 | -3/Research | Discovered new exit (range 15) 32643 | -3/Research | Destroyed 7 combat bots 32645 | -3/Research | Found Prototype Launcher 32677 | -3/Research | Identified Tesla Bomb Launcher 32702 | -3/Research | High security lockdown imminent 32728 | -3/Research | Identified exit to Research 32730 | -3/Research | Entered another Research area 32730 | -2/Research | Warlord forces began assault on 0b10 32730 | -2/Research | Evolved 2 slots: Utility x2 32840 | -2/Research | Research machine network offline 33351 | -2/Research | Borebot progress halted 33381 | -2/Research | Spotted B-90 Cyclops 33463 | -2/Research | Destroyed Executioner 33467 | -2/Research | Destroyed Executioner 33471 | -2/Research | Borebot progress halted 33540 | -2/Research | Borebot progress halted 33548 | -2/Research | Build established: Scavenger-Tank 34002 | -2/Research | Found Exp. Targeting Computer 34285 | -2/Research | Discovered new exit (range 3) 34288 | -2/Research | Identified exit to Access 34338 | -2/Research | Spotted Executioner 34342 | -2/Research | Spotted Executioner 34351 | -2/Research | Discovered new exit (range 5) 34354 | -2/Research | Identified exit to Testing 34356 | -2/Research | Entered Testing 34396 | -2/Testing | Found Prototype Energy Gun 34396 | -2/Testing | Identified Hyp. EM Gauss Rifle 34468 | -2/Testing | Spotted Alpha 7 34524 | -2/Testing | Destroyed Alpha 7 34551 | -2/Testing | Spotted 1H-0WE(K) 34551 | -2/Testing | Spotted R2-HX3(K) 34551 | -2/Testing | Spotted 4P-XZN(K) 34580 | -2/Testing | Rewired R2-HX3(K) 34585 | -2/Testing | Allies destroyed 1H-0WE(K) 34586 | -2/Testing | Rewired 4P-XZN(K) 34624 | -2/Testing | Incoming investigation squad redirected 34656 | -2/Testing | First assault squad dispatched 34784 | -2/Testing | Build established: Scavenger-Skirmisher 34839 | -2/Testing | Found Hvy. Reflective Plating 34882 | -2/Testing | Incoming assault squad redirected 35154 | -2/Testing | Repaired Centrium Heavy Treads 35174 | -2/Testing | Incoming assault squad redirected 35262 | -2/Testing | Lost 5 parts (1p3u1w) 35273 | -2/Testing | Destroyed 7 combat bots 35293 | -2/Testing | Found Prototype Processor 35293 | -2/Testing | Identified Exp. Signal Interpreter 35296 | -2/Testing | Found Exp. Signal Interpreter 35344 | -2/Testing | Found Prototype Protection 35344 | -2/Testing | Identified SHELL Armor 35412 | -2/Testing | Incoming assault squad redirected 35487 | -2/Testing | Found Prototype Launcher 35487 | -2/Testing | Identified Enh. Gamma Bomb Array 35493 | -2/Testing | Found Prototype Launcher 35493 | -2/Testing | Identified Com. Tesla Bomb Launcher 35609 | -2/Testing | Destroyed 10 combat bots 35722 | -2/Testing | Found Prototype Energy Gun 35722 | -2/Testing | Identified Tachyon Dispersion Ray 35736 | -2/Testing | Lost 3 parts (1p1u1w) 35804 | -2/Testing | High security lockdown imminent 35842 | -2/Testing | Identified Transdimensional Reconstructor 35842 | -2/Testing | Warped through subspace 35884 | -2/Testing | High security lockdown engaged 35923 | -2/Testing | Released all parts (13) 35934 | -2/Testing | Core integrity fell below 50% 35961 | -2/Testing | Core integrity fell below 20% 35965 | -2/Testing | Destroyed by G-73 Enforcer with Heavy Laser Last Messages --------------- 35923_ Released Helical Railgun. 35923_ Released Adv. KE Penetrator. 35924_ Acquired Exp. Signal Interpreter. 35927_ C-30 ARC bursts open, deploying its payload. 35927_ G-73 Enforcer unfolds itself. 35927_ L-61 Swordsman unfolds itself. 35927_ G-73 Enforcer unfolds itself. 35927_ M-36 Artificer unfolds itself. 35928_ C-30 ARC bursts open, deploying its payload. 35928_ G-73 Enforcer unfolds itself. 35928_ Dropped Exp. Phase Shifter. 35928_ Dropped Adv. Medium Treads. 35929_ Dropped Adv. KE Penetrator. 35929_ Acquired Graphene Brace. 35931_ Acquired Helical Railgun. 35932_ C-30 ARC bursts open, deploying its payload. 35932_ G-73 Enforcer unfolds itself. 35932_ Slammed into G-73 Enforcer. 35955_ Knocked back. 35959_ Critical hit (Burn: +37). Map ----- +----------------------------------------------------+ | =! + ??????########### ##########? | | !/%! # ??????# # "" # #? | | #####!! # ?????# #"%%"#! #? | | ????#[ #? ?????# # "%!#!!] #? | | ????# ################ / !=**[ #? | | ????# =%* ## # [#!![ #? | | ??" + ! ## # # ! #? | | ????# "%/ # # =[ #? | | ????# ## # # #? | | ????############### ############ # #? | | ??????????????????# #??????????# ##########? | | ??????????????????# ############ #?????????? | | ??????????????????+ #?????????? | | ??????????????????# #?????????? | | ??????????????????# """ """ """ #?????????? | | ??????????????????# !! """ """ """ #?????????? | | ??????????????????# !! """ """ """ #?????????? | | ??????????????????# !! #?????????? | | ###########???????# """ """ """ /?????????? | | # = #???????# """ """l""" #?????????? | | # ! #???????# """ """ """ #?????????? | | #[! #???????# g #?????????? | | # """ """ #???????# """g #?????????? | | +=""" """ #???????# """ g #?????????? | | #!""" """ ????????# """gg m #?????????? | | # ?????????# " F"@ *g g +?????????? | | # ????????+ """" *g #?????????? | | ##########????????# #?????????? | | #?????????????????# #?????????? | | #?????????????????# ##### g #?????????? | | #?????????????????# ###????# gg #?????????? | | ##????????????????#????????# g #?????????? | | #???????????????????###???# #?????????? | | #??????????????????? ???# ### #?????????? | | #??????????????????? ???# #?? #?????????? | | #???????????????????# #???# #?? #?????????? | | #???????????????????# #???# #??#####?????????? | | #???????????????????# #???# #????????????????? | | #???????????????????# ##### #????????????????? | | #???????????????????# #????????????????? | | #???????????????????######## ###????????????????? | | ##????????????????????????? ?????????????????? | | ?????????????????????????"" """ "???????????????? | | ??????????????????????? """ """ """?????????????? | | ??????????????????????# """ """ S"#????????????? | | ??????????????????????? """#????????????? | | ??????????????????????# """ """ """#????????????? | | ??????????????????????# """ """ #????????????? | | ?????????????????????????"" ??? ?????????????? | | ???????????????????????????????? ??????????????? | +----------------------------------------------------+ Best States ------------- Heat Dissipation 159 Energy Generation 75 Energy Capacity 700 Matter Stores 300 Matter Capacity 600 Sight Range 20 Robot Scan Range 20 Terrain Scan Density 10 Jamming Range 16 Cloak Strength 4 Power Amplification 40 Corruption Containment 12 Armor Coverage 3200 Resistance: TH 25 Resistance: EM 90 Core Shielding 30 Utility Shielding 90 Weapon Shielding 66 Weapon Cycling 25 Phase Shifting 20 Evasion (%) 60 Targeting Accuracy 24 Core Analysis 8 Armor Integrity Analysis 40 Recoil Reduction 4 Salvage Targeting 1 Offensive Hacking 20 Item Schematics ----------------- Adv. Transmission Jammer | -8/Materials | Scanalyzed System Purifier | -8/Materials | Scanalyzed Combat Drone Bay | -7/Data Miner | Free Lgt. Regenerative Plating | -7/Data Miner | Free Biomechanical Wings | -7/Data Miner | Free Thermal Defense Suite | -7/Data Miner | Free Cld. Plasma Cannon | -7/Data Miner | Free Gyrokinetic Inverter | -7/Data Miner | Free Mni. Drone Bay | -7/Data Miner | Free Imp. Arc Projector | -7/Data Miner | Free Enh. Optical Array | -7/Data Miner | Free Imp. Fusion Compressor | -7/Data Miner | Free Assault Drone Bay | -5/Zhirov | Free Exp. Heat Sink | -5/Zhirov | Free Exp. Optical Array | -5/Zhirov | Free Imp. Arc Thrower | -5/Zhirov | Free Hdn. Centrium Leg | -2/Testing | Archive Imp. Matter Compressor | -2/Testing | Archive Robot Schematics ------------------ A-15 Conveyor | -7/Data Miner | Free G-47 Trooper | -7/Data Miner | Free B-48 Gladiator | -7/Data Miner | Free X-67 Chaingunner | -6/Factory | Hacked O-32 Director | -2/Research | Hacked X-87 Electro | -2/Testing | Archive C-65 Expert | -2/Testing | Archive Fabricated ------------ H-55 Commando | x2 | -7/Factory | Preloaded Alien Tech Used ----------------- Integrated Dissipator Transdimensional Reconstructor Achievements -------------- None Challenges ------------ None Game ------ Seed BlastHeavyNanoactuators Manual? 0 Play Time 05:38:08 Cumulative 583.9 hours Start 2022.09.15 @ 20:28:05 End 2022.09.17 @ 22:51:45 Sessions 13 Manual Loads 0 Difficulty Rogue Special Mode None Game No. 190 Rogue 186 Adventurer 4 Explorer 0 Win Type - Total 15 Types 7/2/4/0/0/0/1/1/0 Lore% 86 Gallery% 88 Achievement% 76 Wizard Run 0 Options --------- ASCII 1 Keyboard 0 Movement Arrows Keybinds 0 Fullscreen 1 Font 18/SmallcapsGlow Map View 76x50 Tactical HUD 1 Map Filters NONE Filters NONE Steam 1 RUN: b251739c-880c-45c7-9f1f-9b8877c4313b